Department Family,Entity,Payment Date,Expense Type,Expense Area,Supplier,Transaction Number,Amount,Invoice Description,Postal Code,"Admin, Programme or Capital Expenditure"
Food Standards Agency,Food Standards Agency,02/04/2013,Travel UK ,Area 1 Scotland - Cluster 11,Capita Business Travel Ltd,LI519297,127.3,CONSOL INVOICE 1-12 MARCH 13,DE21 6BF,Programme
Food Standards Agency,Food Standards Agency,02/04/2013,Subsistence UK,Area 1 Scotland - Cluster 11,Booking Services International Ltd,022810509/1,350,FSA CONF/HOTEL CHGS FOR FEB 2013,TA1 2PF,Programme
Food Standards Agency,Food Standards Agency,02/04/2013,Travel UK ,Area 1 Scotland - Cluster 12,Capita Business Travel Ltd,LI519297,"1,051.46",CONSOL INVOICE 1-12 MARCH 13,DE21 6BF,Programme
Food Standards Agency,Food Standards Agency,02/04/2013,Subsistence UK,Area 1 Scotland - Cluster 12,Booking Services International Ltd,022810509/1,250,FSA CONF/HOTEL CHGS FOR FEB 2013,TA1 2PF,Programme
Food Standards Agency,Food Standards Agency,02/04/2013,Conference and meeting facilities including accommodation,Area 1 Scotland - Cluster 12,Booking Services International Ltd,022810509/1,605.5,FSA CONF/HOTEL CHGS FOR FEB 2013,TA1 2PF,Programme
Food Standards Agency,Food Standards Agency,02/04/2013,Subsistence UK,Area 1 Scotland - Cluster 13,Booking Services International Ltd,022810509/1,530,FSA CONF/HOTEL CHGS FOR FEB 2013,TA1 2PF,Programme
Food Standards Agency,Food Standards Agency,02/04/2013,Subsistence UK,Area 1 Scotland - Cluster 15,Booking Services International Ltd,022810509/1,-370,FSA CONF/HOTEL CHGS FOR FEB 2013,TA1 2PF,Programme
Food Standards Agency,Food Standards Agency,02/04/2013,Conference and meeting facilities including accommodation,Area 1 Scotland - Cluster 15,Booking Services International Ltd,022810509/1,425.35,FSA CONF/HOTEL CHGS FOR FEB 2013,TA1 2PF,Programme
Food Standards Agency,Food Standards Agency,02/04/2013,Travel UK ,Area 2 Wales - Cluster 21,Capita Business Travel Ltd,LI519297,589.1,CONSOL INVOICE 1-12 MARCH 13,DE21 6BF,Programme
Food Standards Agency,Food Standards Agency,02/04/2013,Subsistence UK,Area 2 Wales - Cluster 21,Booking Services International Ltd,022810509/1,550,FSA CONF/HOTEL CHGS FOR FEB 2013,TA1 2PF,Programme
Food Standards Agency,Food Standards Agency,02/04/2013,Subsistence UK,Area 2 Wales - Cluster 22,Booking Services International Ltd,022810509/1,205,FSA CONF/HOTEL CHGS FOR FEB 2013,TA1 2PF,Programme
Food Standards Agency,Food Standards Agency,02/04/2013,Travel UK ,Area 2 Wales - Cluster 23,Capita Business Travel Ltd,LI519297,54.4,CONSOL INVOICE 1-12 MARCH 13,DE21 6BF,Programme
Food Standards Agency,Food Standards Agency,02/04/2013,Subsistence UK,Area 2 Wales - Cluster 23,Booking Services International Ltd,022810509/1,70,FSA CONF/HOTEL CHGS FOR FEB 2013,TA1 2PF,Programme
Food Standards Agency,Food Standards Agency,02/04/2013,Subsistence UK,Area 3 North West England - Cluster 31,Booking Services International Ltd,022810509/1,435,FSA CONF/HOTEL CHGS FOR FEB 2013,TA1 2PF,Programme
Food Standards Agency,Food Standards Agency,02/04/2013,Travel UK ,Area 3 North West England - Cluster 32,Capita Business Travel Ltd,LI519297,32.2,CONSOL INVOICE 1-12 MARCH 13,DE21 6BF,Programme
Food Standards Agency,Food Standards Agency,02/04/2013,Subsistence UK,Area 3 North West England - Cluster 32,Booking Services International Ltd,022810509/1,50,FSA CONF/HOTEL CHGS FOR FEB 2013,TA1 2PF,Programme
Food Standards Agency,Food Standards Agency,02/04/2013,Subsistence UK,Area 3 North West England - Cluster 33,Booking Services International Ltd,022810509/1,99,FSA CONF/HOTEL CHGS FOR FEB 2013,TA1 2PF,Programme
Food Standards Agency,Food Standards Agency,02/04/2013,Travel UK ,Area 3 North West England - Cluster 34,Capita Business Travel Ltd,LI519297,216.1,CONSOL INVOICE 1-12 MARCH 13,DE21 6BF,Programme
Food Standards Agency,Food Standards Agency,02/04/2013,Subsistence UK,Area 3 North West England - Cluster 34,Booking Services International Ltd,022810509/1,350,FSA CONF/HOTEL CHGS FOR FEB 2013,TA1 2PF,Programme
Food Standards Agency,Food Standards Agency,02/04/2013,Subsistence UK,Area 3 North West England - Cluster 35,Booking Services International Ltd,022810509/1,70,FSA CONF/HOTEL CHGS FOR FEB 2013,TA1 2PF,Programme
Food Standards Agency,Food Standards Agency,02/04/2013,Subsistence UK,Area 3 North West England - Cluster 36,Booking Services International Ltd,022810509/1,280,FSA CONF/HOTEL CHGS FOR FEB 2013,TA1 2PF,Programme
Food Standards Agency,Food Standards Agency,02/04/2013,Travel UK ,Area 4 North East England - Cluster 41,Capita Business Travel Ltd,LI519297,108.8,CONSOL INVOICE 1-12 MARCH 13,DE21 6BF,Programme
Food Standards Agency,Food Standards Agency,02/04/2013,Subsistence UK,Area 4 North East England - Cluster 41,Booking Services International Ltd,022810509/1,70,FSA CONF/HOTEL CHGS FOR FEB 2013,TA1 2PF,Programme
Food Standards Agency,Food Standards Agency,02/04/2013,Travel UK ,Area 4 North East England - Cluster 44,Capita Business Travel Ltd,LI519297,268.4,CONSOL INVOICE 1-12 MARCH 13,DE21 6BF,Programme
Food Standards Agency,Food Standards Agency,02/04/2013,Subsistence UK,Area 4 North East England - Cluster 44,Booking Services International Ltd,022810509/1,70,FSA CONF/HOTEL CHGS FOR FEB 2013,TA1 2PF,Programme
Food Standards Agency,Food Standards Agency,02/04/2013,Travel UK ,Area 4 North East England - Cluster 45,Capita Business Travel Ltd,LI519297,348.7,CONSOL INVOICE 1-12 MARCH 13,DE21 6BF,Programme
Food Standards Agency,Food Standards Agency,02/04/2013,Subsistence UK,Area 4 North East England - Cluster 45,Booking Services International Ltd,022810509/1,590.4,FSA CONF/HOTEL CHGS FOR FEB 2013,TA1 2PF,Programme
Food Standards Agency,Food Standards Agency,02/04/2013,Travel UK ,Area 4 North East England - Cluster 46,Capita Business Travel Ltd,LI519297,166.5,CONSOL INVOICE 1-12 MARCH 13,DE21 6BF,Programme
Food Standards Agency,Food Standards Agency,02/04/2013,Subsistence UK,Area 4 North East England - Cluster 46,Booking Services International Ltd,022810509/1,156,FSA CONF/HOTEL CHGS FOR FEB 2013,TA1 2PF,Programme
Food Standards Agency,Food Standards Agency,02/04/2013,Subsistence UK,Area 4 North East England - Cluster 46,Booking Services International Ltd,022810509/1,156,FSA CONF/HOTEL CHGS FOR FEB 2013,TA1 2PF,Programme
Food Standards Agency,Food Standards Agency,02/04/2013,Subsistence UK,Area 5 South West England - Cluster 51,Booking Services International Ltd,022810509/1,542.4,FSA CONF/HOTEL CHGS FOR FEB 2013,TA1 2PF,Programme
Food Standards Agency,Food Standards Agency,02/04/2013,Travel UK ,Area 5 South West England - Cluster 52,Capita Business Travel Ltd,LI519297,82.5,CONSOL INVOICE 1-12 MARCH 13,DE21 6BF,Programme
Food Standards Agency,Food Standards Agency,02/04/2013,Subsistence UK,Area 5 South West England - Cluster 54,Booking Services International Ltd,022810509/1,70,FSA CONF/HOTEL CHGS FOR FEB 2013,TA1 2PF,Programme
Food Standards Agency,Food Standards Agency,02/04/2013,Subsistence UK,Area 5 South West England - Cluster 55,Booking Services International Ltd,022810509/1,233.6,FSA CONF/HOTEL CHGS FOR FEB 2013,TA1 2PF,Programme
Food Standards Agency,Food Standards Agency,02/04/2013,Subsistence UK,Area 5 South West England - Cluster 56,Booking Services International Ltd,022810509/1,205.6,FSA CONF/HOTEL CHGS FOR FEB 2013,TA1 2PF,Programme
Food Standards Agency,Food Standards Agency,02/04/2013,Travel UK ,Area 5 South West England - Cluster 57,Capita Business Travel Ltd,LI519297,172.2,CONSOL INVOICE 1-12 MARCH 13,DE21 6BF,Programme
Food Standards Agency,Food Standards Agency,02/04/2013,Subsistence UK,Area 5 South West England - Cluster 57,Booking Services International Ltd,022810509/1,114,FSA CONF/HOTEL CHGS FOR FEB 2013,TA1 2PF,Programme
Food Standards Agency,Food Standards Agency,02/04/2013,Travel UK ,Area 6 South East England - Cluster 61,Capita Business Travel Ltd,LI519297,185.2,CONSOL INVOICE 1-12 MARCH 13,DE21 6BF,Programme
Food Standards Agency,Food Standards Agency,02/04/2013,Subsistence UK,Area 6 South East England - Cluster 61,Booking Services International Ltd,022810509/1,70,FSA CONF/HOTEL CHGS FOR FEB 2013,TA1 2PF,Programme
Food Standards Agency,Food Standards Agency,02/04/2013,Conference and meeting facilities including accommodation,Area 6 South East England - Cluster 61,Booking Services International Ltd,022810509/1,101.6,FSA CONF/HOTEL CHGS FOR FEB 2013,TA1 2PF,Programme
Food Standards Agency,Food Standards Agency,02/04/2013,Travel UK ,Area 6 South East England - Cluster 62,Capita Business Travel Ltd,LI519297,162.1,CONSOL INVOICE 1-12 MARCH 13,DE21 6BF,Programme
Food Standards Agency,Food Standards Agency,02/04/2013,Subsistence UK,Area 6 South East England - Cluster 62,Booking Services International Ltd,022810509/1,730.4,FSA CONF/HOTEL CHGS FOR FEB 2013,TA1 2PF,Programme
Food Standards Agency,Food Standards Agency,02/04/2013,Travel UK ,Area 6 South East England - Cluster 63,Capita Business Travel Ltd,LI519297,205.1,CONSOL INVOICE 1-12 MARCH 13,DE21 6BF,Programme
Food Standards Agency,Food Standards Agency,02/04/2013,Subsistence UK,Area 6 South East England - Cluster 63,Booking Services International Ltd,022810509/1,962.4,FSA CONF/HOTEL CHGS FOR FEB 2013,TA1 2PF,Programme
Food Standards Agency,Food Standards Agency,02/04/2013,Travel UK ,Area 6 South East England - Cluster 64,Capita Business Travel Ltd,LI519297,81,CONSOL INVOICE 1-12 MARCH 13,DE21 6BF,Programme
Food Standards Agency,Food Standards Agency,02/04/2013,Subsistence UK,Area 6 South East England - Cluster 64,Booking Services International Ltd,022810509/1,252,FSA CONF/HOTEL CHGS FOR FEB 2013,TA1 2PF,Programme
Food Standards Agency,Food Standards Agency,02/04/2013,Travel UK ,Area 6 South East England - Cluster 65,Capita Business Travel Ltd,LI519297,116.5,CONSOL INVOICE 1-12 MARCH 13,DE21 6BF,Programme
Food Standards Agency,Food Standards Agency,02/04/2013,Postal charges,Area 6 South East England - Cluster 65,Capita Business Travel Ltd,LI519297,7,CONSOL INVOICE 1-12 MARCH 13,DE21 6BF,Programme
Food Standards Agency,Food Standards Agency,02/04/2013,Subsistence UK,Area 6 South East England - Cluster 65,Booking Services International Ltd,022810509/1,135.6,FSA CONF/HOTEL CHGS FOR FEB 2013,TA1 2PF,Programme
Food Standards Agency,Food Standards Agency,02/04/2013,Subsistence UK,Area 6 South East England - Cluster 65,Booking Services International Ltd,022810509/1,102,FSA CONF/HOTEL CHGS FOR FEB 2013,TA1 2PF,Programme
Food Standards Agency,Food Standards Agency,02/04/2013,Travel UK ,Area 6 South East England - Cluster 66,Capita Business Travel Ltd,LI519297,41.4,CONSOL INVOICE 1-12 MARCH 13,DE21 6BF,Programme
Food Standards Agency,Food Standards Agency,02/04/2013,Subsistence UK,Chief Executive & Private Office,Booking Services International Ltd,022810509/1,341.2,FSA CONF/HOTEL CHGS FOR FEB 2013,TA1 2PF,Admin
Food Standards Agency,Food Standards Agency,02/04/2013,Travel UK ,Chief Executive & Private Office,Capita Business Travel Ltd,LI519297,794.85,CONSOL INVOICE 1-12 MARCH 13,DE21 6BF,Admin
Food Standards Agency,Food Standards Agency,02/04/2013,International Travel,Chief Executive & Private Office,Capita Business Travel Ltd,LI519297,219.93,CONSOL INVOICE 1-12 MARCH 13,DE21 6BF,Admin
Food Standards Agency,Food Standards Agency,02/04/2013,Travel UK ,Chair & Deputy Chair,Capita Business Travel Ltd,LI519297,226.1,CONSOL INVOICE 1-12 MARCH 13,DE21 6BF,Admin
Food Standards Agency,Food Standards Agency,02/04/2013,Travel UK ,Legal Branch A,Capita Business Travel Ltd,LI519297,218.55,CONSOL INVOICE 1-12 MARCH 13,DE21 6BF,Admin
Food Standards Agency,Food Standards Agency,02/04/2013,Subsistence UK,Investigations,Booking Services International Ltd,022810509/1,"1,522.40",FSA CONF/HOTEL CHGS FOR FEB 2013,TA1 2PF,Admin
Food Standards Agency,Food Standards Agency,02/04/2013,Travel UK ,Investigations,Capita Business Travel Ltd,LI519297,918,CONSOL INVOICE 1-12 MARCH 13,DE21 6BF,Admin
Food Standards Agency,Food Standards Agency,02/04/2013,International Travel,Investigations,Capita Business Travel Ltd,LI519297,241.48,CONSOL INVOICE 1-12 MARCH 13,DE21 6BF,Admin
Food Standards Agency,Food Standards Agency,02/04/2013,Travel UK ,Chief Scientist,Capita Business Travel Ltd,LI519297,286.2,CONSOL INVOICE 1-12 MARCH 13,DE21 6BF,Admin
Food Standards Agency,Food Standards Agency,02/04/2013,Travel UK ,Analysis & Research Branch,Capita Business Travel Ltd,LI519297,78.7,CONSOL INVOICE 1-12 MARCH 13,DE21 6BF,Admin
Food Standards Agency,Food Standards Agency,02/04/2013,Project Programme expenditure,Analysis & Research Branch,Food & Environment Research Agency,F0027832,"38,738.16",PO 409510 NO DESCRIPTION,YO41 1LZ,Programme
Food Standards Agency,Food Standards Agency,02/04/2013,Project Programme expenditure,Analysis & Research Branch,Food & Environment Research Agency,F0027832,"13,700.00",PO 409510 NO DESCRIPTION,YO41 1LZ,Programme
Food Standards Agency,Food Standards Agency,02/04/2013,Subsistence UK,Area 5 South West England - Cluster 57,Booking Services International Ltd,022810509/1,618,FSA CONF/HOTEL CHGS FOR FEB 2013,TA1 2PF,Admin
Food Standards Agency,Food Standards Agency,02/04/2013,Subsistence UK,Comms Directors Office,Booking Services International Ltd,022810509/1,237.6,FSA CONF/HOTEL CHGS FOR FEB 2013,TA1 2PF,Admin
Food Standards Agency,Food Standards Agency,02/04/2013,Subsistence UK,Comms Directors Office,Booking Services International Ltd,022810509/1,153.6,FSA CONF/HOTEL CHGS FOR FEB 2013,TA1 2PF,Admin
Food Standards Agency,Food Standards Agency,02/04/2013,Conference and meeting facilities including accommodation,Comms Directors Office,Booking Services International Ltd,022810509/1,"25,916.00",FSA CONF/HOTEL CHGS FOR FEB 2013,TA1 2PF,Admin
Food Standards Agency,Food Standards Agency,02/04/2013,Travel UK ,Comms Directors Office,Capita Business Travel Ltd,LI519297,"1,062.10",CONSOL INVOICE 1-12 MARCH 13,DE21 6BF,Admin
Food Standards Agency,Food Standards Agency,02/04/2013,Project Programme expenditure,Comms Directors Office,T N S Uk Ltd,260119348,"48,100.00",PO 412441 FSA TRANCE DNA REPORT,W5 1UA,Programme
Food Standards Agency,Food Standards Agency,02/04/2013,Project Programme expenditure,Comms Directors Office,T N S Uk Ltd,260119348,"9,620.00",PO 412441 FSA TRANCE DNA REPORT,W5 1UA,Programme
Food Standards Agency,Food Standards Agency,02/04/2013,Travel UK ,Comms Directors Office,Capita Business Travel Ltd,LI519297,139.1,CONSOL INVOICE 1-12 MARCH 13,DE21 6BF,Admin
Food Standards Agency,Food Standards Agency,02/04/2013,Subsistence UK,FSA Operations Director & Support,Booking Services International Ltd,022810509/1,678,FSA CONF/HOTEL CHGS FOR FEB 2013,TA1 2PF,Programme
Food Standards Agency,Food Standards Agency,02/04/2013,Travel UK ,FSA Operations Director & Support,Capita Business Travel Ltd,LI519297,450.9,CONSOL INVOICE 1-12 MARCH 13,DE21 6BF,Programme
Food Standards Agency,Food Standards Agency,02/04/2013,Subsistence UK,Approvals & Veterinary Advice,Booking Services International Ltd,022810509/1,"2,249.00",FSA CONF/HOTEL CHGS FOR FEB 2013,TA1 2PF,Programme
Food Standards Agency,Food Standards Agency,02/04/2013,Travel UK ,Approvals & Veterinary Advice,Capita Business Travel Ltd,LI519297,"1,255.05",CONSOL INVOICE 1-12 MARCH 13,DE21 6BF,Programme
Food Standards Agency,Food Standards Agency,02/04/2013,Car hire expenses (short term),Approvals & Veterinary Advice,Capita Business Travel Ltd,LI519297,97.28,CONSOL INVOICE 1-12 MARCH 13,DE21 6BF,Programme
Food Standards Agency,Food Standards Agency,02/04/2013,Subsistence UK,LAALD HoD & Support,Booking Services International Ltd,022810509/1,"1,274.40",FSA CONF/HOTEL CHGS FOR FEB 2013,TA1 2PF,Admin
Food Standards Agency,Food Standards Agency,02/04/2013,Travel UK ,LAALD HoD & Support,Capita Business Travel Ltd,LI519297,"2,262.00",CONSOL INVOICE 1-12 MARCH 13,DE21 6BF,Admin
Food Standards Agency,Food Standards Agency,02/04/2013,Travel UK ,LAALD HoD & Support,Capita Business Travel Ltd,LI519297,27.2,CONSOL INVOICE 1-12 MARCH 13,DE21 6BF,Admin
Food Standards Agency,Food Standards Agency,02/04/2013,Car hire expenses (short term),LAALD HoD & Support,Capita Business Travel Ltd,LI519297,148.34,CONSOL INVOICE 1-12 MARCH 13,DE21 6BF,Admin
Food Standards Agency,Food Standards Agency,02/04/2013,Subsistence UK,Incidents & Food Fraud,Booking Services International Ltd,022810509/1,70,FSA CONF/HOTEL CHGS FOR FEB 2013,TA1 2PF,Admin
Food Standards Agency,Food Standards Agency,02/04/2013,Travel UK ,Incidents & Food Fraud,Capita Business Travel Ltd,LI519297,408.5,CONSOL INVOICE 1-12 MARCH 13,DE21 6BF,Admin
Food Standards Agency,Food Standards Agency,02/04/2013,International Travel,Incidents & Food Fraud,Capita Business Travel Ltd,LI519297,383.65,CONSOL INVOICE 1-12 MARCH 13,DE21 6BF,Admin
Food Standards Agency,Food Standards Agency,02/04/2013,Subsistence UK,Delivery,Booking Services International Ltd,022810509/1,"3,503.20",FSA CONF/HOTEL CHGS FOR FEB 2013,TA1 2PF,Admin
Food Standards Agency,Food Standards Agency,02/04/2013,Conference and meeting facilities including accommodation,Delivery,Booking Services International Ltd,022810509/1,"1,261.70",FSA CONF/HOTEL CHGS FOR FEB 2013,TA1 2PF,Admin
Food Standards Agency,Food Standards Agency,02/04/2013,Travel UK ,Delivery,Capita Business Travel Ltd,LI519297,"2,393.68",CONSOL INVOICE 1-12 MARCH 13,DE21 6BF,Admin
Food Standards Agency,Food Standards Agency,02/04/2013,Travel UK ,Delivery,Capita Business Travel Ltd,LI519297,45.8,CONSOL INVOICE 1-12 MARCH 13,DE21 6BF,Admin
Food Standards Agency,Food Standards Agency,02/04/2013,Programme Evidence & Research Expenditure,Delivery,Public Analyst Scientific Services,IN13WP000227,"25,858.56",PO 408958 FOOD SAMPLING GRANTS 12/13,WV9 5GB,Programme
Food Standards Agency,Food Standards Agency,02/04/2013,Programme Evidence & Research Expenditure,Delivery,Public Analyst Scientific Services,IN13WP000227,"5,171.71",PO 408958 FOOD SAMPLING GRANTS 12/13,WV9 5GB,Programme
Food Standards Agency,Food Standards Agency,02/04/2013,Subsistence UK,Delivery,Booking Services International Ltd,022810509/1,"2,400.00",FSA CONF/HOTEL CHGS FOR FEB 2013,TA1 2PF,Admin
Food Standards Agency,Food Standards Agency,02/04/2013,Subsistence UK,Enforcement Policy,Booking Services International Ltd,022810509/1,85,FSA CONF/HOTEL CHGS FOR FEB 2013,TA1 2PF,Admin
Food Standards Agency,Food Standards Agency,02/04/2013,Subsistence UK,Official Controls & Enforcement Strategy,Booking Services International Ltd,022810509/1,467.22,FSA CONF/HOTEL CHGS FOR FEB 2013,TA1 2PF,Admin
Food Standards Agency,Food Standards Agency,02/04/2013,Travel UK ,Official Controls & Enforcement Strategy,Capita Business Travel Ltd,LI519297,157.9,CONSOL INVOICE 1-12 MARCH 13,DE21 6BF,Admin
Food Standards Agency,Food Standards Agency,02/04/2013,Subsistence UK,Operational Delivery,Booking Services International Ltd,022810509/1,"4,773.60",FSA CONF/HOTEL CHGS FOR FEB 2013,TA1 2PF,Programme
Food Standards Agency,Food Standards Agency,02/04/2013,Conference and meeting facilities including accommodation,Operational Delivery,Booking Services International Ltd,022810509/1,-80.1,FSA CONF/HOTEL CHGS FOR FEB 2013,TA1 2PF,Programme
Food Standards Agency,Food Standards Agency,02/04/2013,Travel UK ,Operational Delivery,Capita Business Travel Ltd,LI519297,"4,609.94",CONSOL INVOICE 1-12 MARCH 13,DE21 6BF,Programme
Food Standards Agency,Food Standards Agency,02/04/2013,International Travel,Operational Delivery,Capita Business Travel Ltd,LI519297,241.48,CONSOL INVOICE 1-12 MARCH 13,DE21 6BF,Programme
Food Standards Agency,Food Standards Agency,02/04/2013,Travel UK ,Wine Standards,Capita Business Travel Ltd,LI519297,256.8,CONSOL INVOICE 1-12 MARCH 13,DE21 6BF,Programme
Food Standards Agency,Food Standards Agency,02/04/2013,Subsistence UK,Wine Standards,Booking Services International Ltd,022810509/1,"3,578.00",FSA CONF/HOTEL CHGS FOR FEB 2013,TA1 2PF,Programme
Food Standards Agency,Food Standards Agency,02/04/2013,Travel UK ,Central Operations Hub,Capita Business Travel Ltd,LI519297,"1,124.16",CONSOL INVOICE 1-12 MARCH 13,DE21 6BF,Programme
Food Standards Agency,Food Standards Agency,02/04/2013,Subsistence UK,Central Operations Hub,Booking Services International Ltd,022810509/1,451,FSA CONF/HOTEL CHGS FOR FEB 2013,TA1 2PF,Programme
Food Standards Agency,Food Standards Agency,02/04/2013,Travel UK ,Chemical Risk Assessment Unit,Capita Business Travel Ltd,LI519297,157.9,CONSOL INVOICE 1-12 MARCH 13,DE21 6BF,Admin
Food Standards Agency,Food Standards Agency,02/04/2013,Subsistence UK,Contaminants Policy & Strategy Unit,Booking Services International Ltd,022810509/1,329.5,FSA CONF/HOTEL CHGS FOR FEB 2013,TA1 2PF,Admin
Food Standards Agency,Food Standards Agency,02/04/2013,International Travel,Contaminants Policy & Strategy Unit,Capita Business Travel Ltd,LI519297,386.62,CONSOL INVOICE 1-12 MARCH 13,DE21 6BF,Admin
Food Standards Agency,Food Standards Agency,02/04/2013,Car hire expenses (short term),Contaminants Policy & Strategy Unit,Capita Business Travel Ltd,LI519297,217.68,CONSOL INVOICE 1-12 MARCH 13,DE21 6BF,Admin
Food Standards Agency,Food Standards Agency,02/04/2013,Subsistence UK,Novel Food Unit,Booking Services International Ltd,022810509/1,540.24,FSA CONF/HOTEL CHGS FOR FEB 2013,TA1 2PF,Admin
Food Standards Agency,Food Standards Agency,02/04/2013,Travel UK ,Novel Food Unit,Capita Business Travel Ltd,LI519297,52.9,CONSOL INVOICE 1-12 MARCH 13,DE21 6BF,Admin
Food Standards Agency,Food Standards Agency,02/04/2013,Travel UK ,Hygiene & Microbiology Division HoD,Capita Business Travel Ltd,LI519297,122.5,CONSOL INVOICE 1-12 MARCH 13,DE21 6BF,Admin
Food Standards Agency,Food Standards Agency,02/04/2013,Subsistence UK,Microbiological Food Safety Branch,Booking Services International Ltd,022810509/1,145,FSA CONF/HOTEL CHGS FOR FEB 2013,TA1 2PF,Admin
Food Standards Agency,Food Standards Agency,02/04/2013,Travel UK ,Microbiological Food Safety Branch,Capita Business Travel Ltd,LI519297,390.8,CONSOL INVOICE 1-12 MARCH 13,DE21 6BF,Admin
Food Standards Agency,Food Standards Agency,02/04/2013,Travel UK ,Food Production Branch,Capita Business Travel Ltd,LI519297,56,CONSOL INVOICE 1-12 MARCH 13,DE21 6BF,Admin
Food Standards Agency,Food Standards Agency,02/04/2013,Programme Evidence & Research Expenditure,Food Production Branch,Animal Health and Veterinary Laboratories Agency,5000024048,"55,034.75",PO 407957 RESEARCH & DEV FIFTH PAYMENT,KT15 3NB,Programme
Food Standards Agency,Food Standards Agency,02/04/2013,Subsistence UK,EU Regulatory Reform Branch,Booking Services International Ltd,022810509/1,649.87,FSA CONF/HOTEL CHGS FOR FEB 2013,TA1 2PF,Admin
Food Standards Agency,Food Standards Agency,02/04/2013,International Travel,EU Regulatory Reform Branch,Capita Business Travel Ltd,LI519297,193.75,CONSOL INVOICE 1-12 MARCH 13,DE21 6BF,Admin
Food Standards Agency,Food Standards Agency,02/04/2013,Subsistence UK,Food Hygiene Policy Branch,Booking Services International Ltd,022810509/1,316.03,FSA CONF/HOTEL CHGS FOR FEB 2013,TA1 2PF,Admin
Food Standards Agency,Food Standards Agency,02/04/2013,International Travel,Food Hygiene Policy Branch,Capita Business Travel Ltd,LI519297,173.75,CONSOL INVOICE 1-12 MARCH 13,DE21 6BF,Admin
Food Standards Agency,Food Standards Agency,02/04/2013,Car hire expenses (short term),Meat & Hygiene & TSE Policy Branch,Capita Business Travel Ltd,LI519297,147.14,CONSOL INVOICE 1-12 MARCH 13,DE21 6BF,Admin
Food Standards Agency,Food Standards Agency,02/04/2013,Travel UK ,Foodborne Diseases Branch,Capita Business Travel Ltd,LI519297,311.1,CONSOL INVOICE 1-12 MARCH 13,DE21 6BF,Admin
Food Standards Agency,Food Standards Agency,02/04/2013,Subsistence UK,Animal Feed Branch,Booking Services International Ltd,022810509/1,150,FSA CONF/HOTEL CHGS FOR FEB 2013,TA1 2PF,Admin
Food Standards Agency,Food Standards Agency,02/04/2013,Travel UK ,Animal Feed Branch,Capita Business Travel Ltd,LI519297,264.75,CONSOL INVOICE 1-12 MARCH 13,DE21 6BF,Admin
Food Standards Agency,Food Standards Agency,02/04/2013,International Travel,Animal Feed Branch,Capita Business Travel Ltd,LI519297,847.75,CONSOL INVOICE 1-12 MARCH 13,DE21 6BF,Admin
Food Standards Agency,Food Standards Agency,02/04/2013,Travel UK ,Allergens,Capita Business Travel Ltd,LI519297,446.4,CONSOL INVOICE 1-12 MARCH 13,DE21 6BF,Admin
Food Standards Agency,Food Standards Agency,02/04/2013,International Travel,Allergens,Capita Business Travel Ltd,LI519297,227.16,CONSOL INVOICE 1-12 MARCH 13,DE21 6BF,Admin
Food Standards Agency,Food Standards Agency,02/04/2013,Subsistence UK,Additives,Booking Services International Ltd,022810509/1,124.93,FSA CONF/HOTEL CHGS FOR FEB 2013,TA1 2PF,Admin
Food Standards Agency,Food Standards Agency,02/04/2013,Subsistence UK,Food Policy Strategy HoD,Booking Services International Ltd,022810509/1,123.6,FSA CONF/HOTEL CHGS FOR FEB 2013,TA1 2PF,Admin
Food Standards Agency,Food Standards Agency,02/04/2013,Conference and meeting facilities including accommodation,Food Policy Strategy HoD,Booking Services International Ltd,022810509/1,"3,261.39",FSA CONF/HOTEL CHGS FOR FEB 2013,TA1 2PF,Admin
Food Standards Agency,Food Standards Agency,02/04/2013,Travel UK ,Food Policy Strategy HoD,Capita Business Travel Ltd,LI519297,"1,027.10",CONSOL INVOICE 1-12 MARCH 13,DE21 6BF,Admin
Food Standards Agency,Food Standards Agency,02/04/2013,International Travel,Food Policy Strategy HoD,Capita Business Travel Ltd,LI519297,147.47,CONSOL INVOICE 1-12 MARCH 13,DE21 6BF,Admin
Food Standards Agency,Food Standards Agency,02/04/2013,Subsistence UK,European & International Strategy,Booking Services International Ltd,022810509/1,127.2,FSA CONF/HOTEL CHGS FOR FEB 2013,TA1 2PF,Admin
Food Standards Agency,Food Standards Agency,02/04/2013,Subsistence UK,Planning and Performance,Booking Services International Ltd,022810509/1,962.64,FSA CONF/HOTEL CHGS FOR FEB 2013,TA1 2PF,Admin
Food Standards Agency,Food Standards Agency,02/04/2013,Travel UK ,Planning and Performance,Capita Business Travel Ltd,LI519297,835.5,CONSOL INVOICE 1-12 MARCH 13,DE21 6BF,Admin
Food Standards Agency,Food Standards Agency,02/04/2013,Travel UK ,Better Regulations & Sustainable Development,Capita Business Travel Ltd,LI519297,-138.98,CONSOL INVOICE 1-12 MARCH 13,DE21 6BF,Admin
Food Standards Agency,Food Standards Agency,02/04/2013,Subsistence UK,Finance Director & Branch,Booking Services International Ltd,022810509/1,147.6,FSA CONF/HOTEL CHGS FOR FEB 2013,TA1 2PF,Admin
Food Standards Agency,Food Standards Agency,02/04/2013,Travel UK ,Finance Director & Branch,Capita Business Travel Ltd,LI519297,726.6,CONSOL INVOICE 1-12 MARCH 13,DE21 6BF,Admin
Food Standards Agency,Food Standards Agency,02/04/2013,Subsistence UK,HR,Booking Services International Ltd,022810509/1,"1,255.80",FSA CONF/HOTEL CHGS FOR FEB 2013,TA1 2PF,Admin
Food Standards Agency,Food Standards Agency,02/04/2013,Conference and meeting facilities including accommodation,HR,Booking Services International Ltd,022810509/1,"2,508.00",FSA CONF/HOTEL CHGS FOR FEB 2013,TA1 2PF,Admin
Food Standards Agency,Food Standards Agency,02/04/2013,Travel UK ,HR,Capita Business Travel Ltd,LI519297,"2,248.50",CONSOL INVOICE 1-12 MARCH 13,DE21 6BF,Admin
Food Standards Agency,Food Standards Agency,02/04/2013,Subsistence UK,Procurement,Booking Services International Ltd,022810509/1,151.2,FSA CONF/HOTEL CHGS FOR FEB 2013,TA1 2PF,Admin
Food Standards Agency,Food Standards Agency,02/04/2013,Travel UK ,Procurement,Capita Business Travel Ltd,LI519297,722.7,CONSOL INVOICE 1-12 MARCH 13,DE21 6BF,Admin
Food Standards Agency,Food Standards Agency,02/04/2013,Subsistence UK,IT HoD,Booking Services International Ltd,022810509/1,253.6,FSA CONF/HOTEL CHGS FOR FEB 2013,TA1 2PF,Admin
Food Standards Agency,Food Standards Agency,02/04/2013,Travel UK ,IT HoD,Capita Business Travel Ltd,LI519297,"1,198.45",CONSOL INVOICE 1-12 MARCH 13,DE21 6BF,Admin
Food Standards Agency,Food Standards Agency,02/04/2013,Car hire expenses (short term),IT HoD,Capita Business Travel Ltd,LI519297,59.87,CONSOL INVOICE 1-12 MARCH 13,DE21 6BF,Admin
Food Standards Agency,Food Standards Agency,02/04/2013,Service charges,Security & Estates,G4s Integrated Services (Uk) Ltd,M10996,"27,813.58",SERVICE PROVISION ON CONTRACT REF PAU229 FOR FEB 2013,S81 7QF,Admin
Food Standards Agency,Food Standards Agency,02/04/2013,Service charges,Security & Estates,G4s Integrated Services (Uk) Ltd,M10996,"16,129.33",SERVICE PROVISION ON CONTRACT REF PAU229 FOR FEB 2013,S81 7QF,Admin
Food Standards Agency,Food Standards Agency,02/04/2013,Service charges,Security & Estates,G4s Integrated Services (Uk) Ltd,M10996,"2,939.90",SERVICE PROVISION ON CONTRACT REF PAU229 FOR FEB 2013,S81 7QF,Admin
Food Standards Agency,Food Standards Agency,02/04/2013,Stationery,Security & Estates,G4s Integrated Services (Uk) Ltd,M10996,"3,244.00",SERVICE PROVISION ON CONTRACT REF PAU229 FOR FEB 2013,S81 7QF,Admin
Food Standards Agency,Food Standards Agency,02/04/2013,Security,Security & Estates,G4s Integrated Services (Uk) Ltd,M10996,"18,775.37",SERVICE PROVISION ON CONTRACT REF PAU229 FOR FEB 2013,S81 7QF,Admin
Food Standards Agency,Food Standards Agency,02/04/2013,Subsistence UK,Security & Estates,Booking Services International Ltd,022810509/1,373.2,FSA CONF/HOTEL CHGS FOR FEB 2013,TA1 2PF,Admin
Food Standards Agency,Food Standards Agency,02/04/2013,Travel UK ,Security & Estates,Capita Business Travel Ltd,LI519297,70.9,CONSOL INVOICE 1-12 MARCH 13,DE21 6BF,Admin
Food Standards Agency,Food Standards Agency,02/04/2013,Travel UK ,IT Information & Knowledge Management,Capita Business Travel Ltd,LI519297,153.4,CONSOL INVOICE 1-12 MARCH 13,DE21 6BF,Admin
Food Standards Agency,Food Standards Agency,02/04/2013,Subsistence UK,Internal Audit,Booking Services International Ltd,022810509/1,343,FSA CONF/HOTEL CHGS FOR FEB 2013,TA1 2PF,Admin
Food Standards Agency,Food Standards Agency,02/04/2013,Travel UK ,Internal Audit,Capita Business Travel Ltd,LI519297,456,CONSOL INVOICE 1-12 MARCH 13,DE21 6BF,Admin
Food Standards Agency,Food Standards Agency,02/04/2013,Subsistence UK,Area 1 Scotland - Cluster 11,Booking Services International Ltd,022810509/1,85,FSA CONF/HOTEL CHGS FOR FEB 2013,TA1 2PF,Programme
Food Standards Agency,Food Standards Agency,02/04/2013,Subsistence UK,Area 2 Wales - Cluster 23,Booking Services International Ltd,022810509/1,70,FSA CONF/HOTEL CHGS FOR FEB 2013,TA1 2PF,Programme
Food Standards Agency,Food Standards Agency,02/04/2013,Subsistence UK,Area 1 Scotland - Cluster 13,Booking Services International Ltd,022810509/1,123.6,FSA CONF/HOTEL CHGS FOR FEB 2013,TA1 2PF,Programme
Food Standards Agency,Food Standards Agency,03/04/2013,Project Programme expenditure,Analysis & Research Branch,T N S Uk Ltd,260119330,"38,235.00",PO 406948 FOOD & YOU NARRATIVE REPORT,W5 1UA,Programme
Food Standards Agency,Food Standards Agency,03/04/2013,Project Programme expenditure,Delivery,Campden Bri,20061366,"23,450.00","PO 408439 DELIVERABLES 3,4,5 & 6",GL55 6LD,Programme
Food Standards Agency,Food Standards Agency,03/04/2013,Project Programme expenditure,Delivery,N S F Safety & Quality UK Ltd,5028587,"38,898.34",PO 408190 COACHING VISITS JAN 13,OX29 8SJ,Programme
Food Standards Agency,Food Standards Agency,03/04/2013,Project Programme expenditure,Enforcement Policy,Gfk NOP Ltd,8272005571,"28,200.00",PO 411960 SURVEY ON FHRS DISPLAY,SE1 9UL,Programme
Food Standards Agency,Food Standards Agency,03/04/2013,Project Programme expenditure,Enforcement Policy,Gfk NOP Ltd,8272005571,"5,640.00",PO 411960 SURVEY ON FHRS DISPLAY,SE1 9UL,Programme
Food Standards Agency,Food Standards Agency,03/04/2013,Project Programme expenditure,Official Controls & Enforcement Strategy,Doncaster Council,64078763,"41,831.60",PO 405318 GRANT FUNDING RE FOOD HYGIENE RATING SCHEME,DN1 3BU,Programme
Food Standards Agency,Food Standards Agency,03/04/2013,Project Programme expenditure,Review of Delivery of Official Controls,Quo Vadis Consulting Partners Ltd,982,"64,535.00",PO 409757 CONSULTANCY FEES DELIVERABLES 8-9,KT13 8NA,Programme
Food Standards Agency,Food Standards Agency,04/04/2013,Other Accommodation Costs,Security & Estates,Turner & Townsend Management Solutions Ltd,536395,"34,699.00","PO 411920 FSA AVIATION HOUSE RE STACK, PROFESSIONAL FEES",LS18 4GH,Admin
Food Standards Agency,Food Standards Agency,04/04/2013,Other Accommodation Costs,Security & Estates,Turner & Townsend Management Solutions Ltd,536395,"6,939.80","PO 411920 FSA AVIATION HOUSE RE STACK, PROFESSIONAL FEES",LS18 4GH,Admin
Food Standards Agency,Food Standards Agency,08/04/2013,Project Programme expenditure,Delivery,N S F Safety & Quality UK Ltd,5029122,"34,050.00",PO 408190 COACHING VISITS ETC FEB 2013,OX29 8SJ,Programme
Food Standards Agency,Food Standards Agency,08/04/2013,Project Programme expenditure,Delivery,Williams Lea Ltd,FSAWE13020008,"81,892.00",PO 411609 PUBLICATIONS,W2 6LG,Programme
Food Standards Agency,Food Standards Agency,08/04/2013,Project Programme expenditure,Delivery,Williams Lea Ltd,FSAWE13030002,"27,570.14",PO 408437 NO DETAIL,W2 6LG,Programme
Food Standards Agency,Food Standards Agency,08/04/2013,Project Programme expenditure,Contaminants Policy & Strategy Unit,Animal Health and Veterinary Laboratories Agency,5000025495,"60,529.00",PO 400807 RADIOACTIVITY MONITORING MAR 2013,KT15 3NB,Programme
Food Standards Agency,Food Standards Agency,08/04/2013,IT Development projects,IT Strategy & Development,Capita Secure Information Solutions Ltd,92903259,"93,952.79","Capita - Application Development, ICT Training, ICT Programme/Project Management and Technical Project Delivery days for February 2013",SN14 0TW,Admin
Food Standards Agency,Food Standards Agency,08/04/2013,IT Development projects,IT Strategy & Development,Capita Secure Information Solutions Ltd,92903259,"93,952.79","Capita - Application Development, ICT Training, ICT Programme/Project Management and Technical Project Delivery days for March 2013",SN14 0TW,Admin
Food Standards Agency,Food Standards Agency,10/04/2013,Project Programme expenditure,Enforcement Policy,Capita Secure Information Solutions Ltd,92922015,"1,900.00",PO 411398 DEVELOPER RESOURCE FOR FHRS,SN14 0TW,Programme
Food Standards Agency,Food Standards Agency,10/04/2013,Project Programme expenditure,Enforcement Policy,Capita Secure Information Solutions Ltd,92922015,"1,900.00",PO 411398 DEVELOPER RESOURCE FOR FHRS,SN14 0TW,Programme
Food Standards Agency,Food Standards Agency,10/04/2013,Project Programme expenditure,Enforcement Policy,Capita Secure Information Solutions Ltd,92922015,"1,900.00",PO 411398 DEVELOPER RESOURCE FOR FHRS,SN14 0TW,Programme
Food Standards Agency,Food Standards Agency,10/04/2013,Project Programme expenditure,Enforcement Policy,Capita Secure Information Solutions Ltd,92922015,"1,900.00",PO 411398 DEVELOPER RESOURCE FOR FHRS,SN14 0TW,Programme
Food Standards Agency,Food Standards Agency,10/04/2013,Project Programme expenditure,Enforcement Policy,Capita Secure Information Solutions Ltd,92922015,"1,900.00",PO 411398 DEVELOPER RESOURCE FOR FHRS,SN14 0TW,Programme
Food Standards Agency,Food Standards Agency,10/04/2013,Project Programme expenditure,Enforcement Policy,Capita Secure Information Solutions Ltd,92922015,"1,900.00",PO 411398 DEVELOPER RESOURCE FOR FHRS,SN14 0TW,Programme
Food Standards Agency,Food Standards Agency,10/04/2013,Project Programme expenditure,Enforcement Policy,Capita Secure Information Solutions Ltd,92922015,"1,900.00",PO 411398 DEVELOPER RESOURCE FOR FHRS,SN14 0TW,Programme
Food Standards Agency,Food Standards Agency,10/04/2013,Project Programme expenditure,Enforcement Policy,Capita Secure Information Solutions Ltd,92922015,"1,900.00",PO 411398 DEVELOPER RESOURCE FOR FHRS,SN14 0TW,Programme
Food Standards Agency,Food Standards Agency,10/04/2013,Project Programme expenditure,Enforcement Policy,Capita Secure Information Solutions Ltd,92922015,"1,900.00",PO 411398 DEVELOPER RESOURCE FOR FHRS,SN14 0TW,Programme
Food Standards Agency,Food Standards Agency,10/04/2013,Project Programme expenditure,Enforcement Policy,Capita Secure Information Solutions Ltd,92922015,"1,900.00",PO 411398 DEVELOPER RESOURCE FOR FHRS,SN14 0TW,Programme
Food Standards Agency,Food Standards Agency,10/04/2013,Project Programme expenditure,Enforcement Policy,Capita Secure Information Solutions Ltd,92922015,"1,900.00",PO 411398 DEVELOPER RESOURCE FOR FHRS,SN14 0TW,Programme
Food Standards Agency,Food Standards Agency,10/04/2013,Project Programme expenditure,Enforcement Policy,Capita Secure Information Solutions Ltd,92922015,"1,900.00",PO 411398 DEVELOPER RESOURCE FOR FHRS,SN14 0TW,Programme
Food Standards Agency,Food Standards Agency,10/04/2013,Project Programme expenditure,Enforcement Policy,Capita Secure Information Solutions Ltd,92922015,"1,520.00",PO 411398 DEVELOPER RESOURCE FOR FHRS,SN14 0TW,Programme
Food Standards Agency,Food Standards Agency,10/04/2013,Project Programme expenditure,Enforcement Policy,Capita Secure Information Solutions Ltd,92922015,"1,520.00",PO 411398 DEVELOPER RESOURCE FOR FHRS,SN14 0TW,Programme
Food Standards Agency,Food Standards Agency,10/04/2013,Project Programme expenditure,Enforcement Policy,Capita Secure Information Solutions Ltd,92922015,"1,140.00",PO 411398 DEVELOPER RESOURCE FOR FHRS,SN14 0TW,Programme
Food Standards Agency,Food Standards Agency,10/04/2013,Project Programme expenditure,Enforcement Policy,Capita Secure Information Solutions Ltd,92922015,"1,140.00",PO 411398 DEVELOPER RESOURCE FOR FHRS,SN14 0TW,Programme
Food Standards Agency,Food Standards Agency,10/04/2013,Project Programme expenditure,Enforcement Policy,Capita Secure Information Solutions Ltd,92922015,760,PO 411398 DEVELOPER RESOURCE FOR FHRS,SN14 0TW,Programme
Food Standards Agency,Food Standards Agency,10/04/2013,Project Programme expenditure,Enforcement Policy,Capita Secure Information Solutions Ltd,92922015,380,PO 411398 DEVELOPER RESOURCE FOR FHRS,SN14 0TW,Programme
Food Standards Agency,Food Standards Agency,10/04/2013,Project Programme expenditure,Enforcement Policy,Capita Secure Information Solutions Ltd,92922015,380,PO 411398 DEVELOPER RESOURCE FOR FHRS,SN14 0TW,Programme
Food Standards Agency,Food Standards Agency,10/04/2013,Project Programme expenditure,Enforcement Policy,Capita Secure Information Solutions Ltd,92922015,380,PO 411398 DEVELOPER RESOURCE FOR FHRS,SN14 0TW,Programme
Food Standards Agency,Food Standards Agency,10/04/2013,Project Programme expenditure,Enforcement Policy,Capita Secure Information Solutions Ltd,92922015,380,PO 411398 DEVELOPER RESOURCE FOR FHRS,SN14 0TW,Programme
Food Standards Agency,Food Standards Agency,10/04/2013,Project Programme expenditure,Enforcement Policy,Capita Secure Information Solutions Ltd,92922015,380,PO 411398 DEVELOPER RESOURCE FOR FHRS,SN14 0TW,Programme
Food Standards Agency,Food Standards Agency,10/04/2013,Project Programme expenditure,Enforcement Policy,Capita Secure Information Solutions Ltd,92922015,380,PO 411398 DEVELOPER RESOURCE FOR FHRS,SN14 0TW,Programme
Food Standards Agency,Food Standards Agency,10/04/2013,Project Programme expenditure,Enforcement Policy,Capita Secure Information Solutions Ltd,92922015,380,PO 411398 DEVELOPER RESOURCE FOR FHRS,SN14 0TW,Programme
Food Standards Agency,Food Standards Agency,10/04/2013,Project Programme expenditure,Enforcement Policy,Capita Secure Information Solutions Ltd,92922015,380,PO 411398 DEVELOPER RESOURCE FOR FHRS,SN14 0TW,Programme
Food Standards Agency,Food Standards Agency,10/04/2013,Project Programme expenditure,Enforcement Policy,Capita Secure Information Solutions Ltd,92922015,380,PO 411398 DEVELOPER RESOURCE FOR FHRS,SN14 0TW,Programme
Food Standards Agency,Food Standards Agency,10/04/2013,Project Programme expenditure,Enforcement Policy,Capita Secure Information Solutions Ltd,92922015,380,PO 411398 DEVELOPER RESOURCE FOR FHRS,SN14 0TW,Programme
Food Standards Agency,Food Standards Agency,10/04/2013,Project Programme expenditure,Enforcement Policy,Capita Secure Information Solutions Ltd,92922015,380,PO 411398 DEVELOPER RESOURCE FOR FHRS,SN14 0TW,Programme
Food Standards Agency,Food Standards Agency,10/04/2013,Project Programme expenditure,Enforcement Policy,Capita Secure Information Solutions Ltd,92922015,380,PO 411398 DEVELOPER RESOURCE FOR FHRS,SN14 0TW,Programme
Food Standards Agency,Food Standards Agency,10/04/2013,Project Programme expenditure,Enforcement Policy,Capita Secure Information Solutions Ltd,92922015,304,PO 411398 DEVELOPER RESOURCE FOR FHRS,SN14 0TW,Programme
Food Standards Agency,Food Standards Agency,10/04/2013,Project Programme expenditure,Enforcement Policy,Capita Secure Information Solutions Ltd,92922015,304,PO 411398 DEVELOPER RESOURCE FOR FHRS,SN14 0TW,Programme
Food Standards Agency,Food Standards Agency,10/04/2013,Project Programme expenditure,Enforcement Policy,Capita Secure Information Solutions Ltd,92922015,228,PO 411398 DEVELOPER RESOURCE FOR FHRS,SN14 0TW,Programme
Food Standards Agency,Food Standards Agency,10/04/2013,Project Programme expenditure,Enforcement Policy,Capita Secure Information Solutions Ltd,92922015,228,PO 411398 DEVELOPER RESOURCE FOR FHRS,SN14 0TW,Programme
Food Standards Agency,Food Standards Agency,10/04/2013,Project Programme expenditure,Enforcement Policy,Capita Secure Information Solutions Ltd,92922015,152,PO 411398 DEVELOPER RESOURCE FOR FHRS,SN14 0TW,Programme
Food Standards Agency,Food Standards Agency,10/04/2013,Project Programme expenditure,Enforcement Policy,Capita Secure Information Solutions Ltd,92922018,"1,935.00",PO 409645 DEVELOPER RESOURCE,SN14 0TW,Programme
Food Standards Agency,Food Standards Agency,10/04/2013,Project Programme expenditure,Enforcement Policy,Capita Secure Information Solutions Ltd,92922018,"1,935.00",PO 409645 DEVELOPER RESOURCE,SN14 0TW,Programme
Food Standards Agency,Food Standards Agency,10/04/2013,Project Programme expenditure,Enforcement Policy,Capita Secure Information Solutions Ltd,92922018,"1,935.00",PO 409645 DEVELOPER RESOURCE,SN14 0TW,Programme
Food Standards Agency,Food Standards Agency,10/04/2013,Project Programme expenditure,Enforcement Policy,Capita Secure Information Solutions Ltd,92922018,"1,935.00",PO 409645 DEVELOPER RESOURCE,SN14 0TW,Programme
Food Standards Agency,Food Standards Agency,10/04/2013,Project Programme expenditure,Enforcement Policy,Capita Secure Information Solutions Ltd,92922018,"1,935.00",PO 409645 DEVELOPER RESOURCE,SN14 0TW,Programme
Food Standards Agency,Food Standards Agency,10/04/2013,Project Programme expenditure,Enforcement Policy,Capita Secure Information Solutions Ltd,92922018,"1,935.00",PO 409645 DEVELOPER RESOURCE,SN14 0TW,Programme
Food Standards Agency,Food Standards Agency,10/04/2013,Project Programme expenditure,Enforcement Policy,Capita Secure Information Solutions Ltd,92922018,"1,935.00",PO 409645 DEVELOPER RESOURCE,SN14 0TW,Programme
Food Standards Agency,Food Standards Agency,10/04/2013,Project Programme expenditure,Enforcement Policy,Capita Secure Information Solutions Ltd,92922018,"1,935.00",PO 409645 DEVELOPER RESOURCE,SN14 0TW,Programme
Food Standards Agency,Food Standards Agency,10/04/2013,Project Programme expenditure,Enforcement Policy,Capita Secure Information Solutions Ltd,92922018,"1,935.00",PO 409645 DEVELOPER RESOURCE,SN14 0TW,Programme
Food Standards Agency,Food Standards Agency,10/04/2013,Project Programme expenditure,Enforcement Policy,Capita Secure Information Solutions Ltd,92922018,"1,935.00",PO 409645 DEVELOPER RESOURCE,SN14 0TW,Programme
Food Standards Agency,Food Standards Agency,10/04/2013,Project Programme expenditure,Enforcement Policy,Capita Secure Information Solutions Ltd,92922018,"1,935.00",PO 409645 DEVELOPER RESOURCE,SN14 0TW,Programme
Food Standards Agency,Food Standards Agency,10/04/2013,Project Programme expenditure,Enforcement Policy,Capita Secure Information Solutions Ltd,92922018,"1,935.00",PO 409645 DEVELOPER RESOURCE,SN14 0TW,Programme
Food Standards Agency,Food Standards Agency,10/04/2013,Project Programme expenditure,Enforcement Policy,Capita Secure Information Solutions Ltd,92922018,"1,935.00",PO 409645 DEVELOPER RESOURCE,SN14 0TW,Programme
Food Standards Agency,Food Standards Agency,10/04/2013,Project Programme expenditure,Enforcement Policy,Capita Secure Information Solutions Ltd,92922018,"1,935.00",PO 409645 DEVELOPER RESOURCE,SN14 0TW,Programme
Food Standards Agency,Food Standards Agency,10/04/2013,Project Programme expenditure,Enforcement Policy,Capita Secure Information Solutions Ltd,92922018,"1,935.00",PO 409645 DEVELOPER RESOURCE,SN14 0TW,Programme
Food Standards Agency,Food Standards Agency,10/04/2013,Project Programme expenditure,Enforcement Policy,Capita Secure Information Solutions Ltd,92922018,"1,935.00",PO 409645 DEVELOPER RESOURCE,SN14 0TW,Programme
Food Standards Agency,Food Standards Agency,10/04/2013,Project Programme expenditure,Enforcement Policy,Capita Secure Information Solutions Ltd,92922018,"1,548.00",PO 409645 DEVELOPER RESOURCE,SN14 0TW,Programme
Food Standards Agency,Food Standards Agency,10/04/2013,Project Programme expenditure,Enforcement Policy,Capita Secure Information Solutions Ltd,92922018,"1,548.00",PO 409645 DEVELOPER RESOURCE,SN14 0TW,Programme
Food Standards Agency,Food Standards Agency,10/04/2013,Project Programme expenditure,Enforcement Policy,Capita Secure Information Solutions Ltd,92922018,774,PO 409645 DEVELOPER RESOURCE,SN14 0TW,Programme
Food Standards Agency,Food Standards Agency,10/04/2013,Project Programme expenditure,Enforcement Policy,Capita Secure Information Solutions Ltd,92922018,387,PO 409645 DEVELOPER RESOURCE,SN14 0TW,Programme
Food Standards Agency,Food Standards Agency,10/04/2013,Project Programme expenditure,Enforcement Policy,Capita Secure Information Solutions Ltd,92922018,387,PO 409645 DEVELOPER RESOURCE,SN14 0TW,Programme
Food Standards Agency,Food Standards Agency,10/04/2013,Project Programme expenditure,Enforcement Policy,Capita Secure Information Solutions Ltd,92922018,387,PO 409645 DEVELOPER RESOURCE,SN14 0TW,Programme
Food Standards Agency,Food Standards Agency,10/04/2013,Project Programme expenditure,Enforcement Policy,Capita Secure Information Solutions Ltd,92922018,387,PO 409645 DEVELOPER RESOURCE,SN14 0TW,Programme
Food Standards Agency,Food Standards Agency,10/04/2013,Project Programme expenditure,Enforcement Policy,Capita Secure Information Solutions Ltd,92922018,387,PO 409645 DEVELOPER RESOURCE,SN14 0TW,Programme
Food Standards Agency,Food Standards Agency,10/04/2013,Project Programme expenditure,Enforcement Policy,Capita Secure Information Solutions Ltd,92922018,387,PO 409645 DEVELOPER RESOURCE,SN14 0TW,Programme
Food Standards Agency,Food Standards Agency,10/04/2013,Project Programme expenditure,Enforcement Policy,Capita Secure Information Solutions Ltd,92922018,387,PO 409645 DEVELOPER RESOURCE,SN14 0TW,Programme
Food Standards Agency,Food Standards Agency,10/04/2013,Project Programme expenditure,Enforcement Policy,Capita Secure Information Solutions Ltd,92922018,387,PO 409645 DEVELOPER RESOURCE,SN14 0TW,Programme
Food Standards Agency,Food Standards Agency,10/04/2013,Project Programme expenditure,Enforcement Policy,Capita Secure Information Solutions Ltd,92922018,387,PO 409645 DEVELOPER RESOURCE,SN14 0TW,Programme
Food Standards Agency,Food Standards Agency,10/04/2013,Project Programme expenditure,Enforcement Policy,Capita Secure Information Solutions Ltd,92922018,387,PO 409645 DEVELOPER RESOURCE,SN14 0TW,Programme
Food Standards Agency,Food Standards Agency,10/04/2013,Project Programme expenditure,Enforcement Policy,Capita Secure Information Solutions Ltd,92922018,387,PO 409645 DEVELOPER RESOURCE,SN14 0TW,Programme
Food Standards Agency,Food Standards Agency,10/04/2013,Project Programme expenditure,Enforcement Policy,Capita Secure Information Solutions Ltd,92922018,387,PO 409645 DEVELOPER RESOURCE,SN14 0TW,Programme
Food Standards Agency,Food Standards Agency,10/04/2013,Project Programme expenditure,Enforcement Policy,Capita Secure Information Solutions Ltd,92922018,387,PO 409645 DEVELOPER RESOURCE,SN14 0TW,Programme
Food Standards Agency,Food Standards Agency,10/04/2013,Project Programme expenditure,Enforcement Policy,Capita Secure Information Solutions Ltd,92922018,387,PO 409645 DEVELOPER RESOURCE,SN14 0TW,Programme
Food Standards Agency,Food Standards Agency,10/04/2013,Project Programme expenditure,Enforcement Policy,Capita Secure Information Solutions Ltd,92922018,387,PO 409645 DEVELOPER RESOURCE,SN14 0TW,Programme
Food Standards Agency,Food Standards Agency,10/04/2013,Project Programme expenditure,Enforcement Policy,Capita Secure Information Solutions Ltd,92922018,387,PO 409645 DEVELOPER RESOURCE,SN14 0TW,Programme
Food Standards Agency,Food Standards Agency,10/04/2013,Project Programme expenditure,Enforcement Policy,Capita Secure Information Solutions Ltd,92922018,309.6,PO 409645 DEVELOPER RESOURCE,SN14 0TW,Programme
Food Standards Agency,Food Standards Agency,10/04/2013,Project Programme expenditure,Enforcement Policy,Capita Secure Information Solutions Ltd,92922018,309.6,PO 409645 DEVELOPER RESOURCE,SN14 0TW,Programme
Food Standards Agency,Food Standards Agency,10/04/2013,Project Programme expenditure,Enforcement Policy,Capita Secure Information Solutions Ltd,92922018,154.8,PO 409645 DEVELOPER RESOURCE,SN14 0TW,Programme
Food Standards Agency,Food Standards Agency,10/04/2013,Project Programme expenditure,Official Controls & Enforcement Strategy,G H K Consulting Ltd,30405631,"29,037.00",PO 411915 STUDY: JOB NO. 30259522,EC1R 5BL,Programme
Food Standards Agency,Food Standards Agency,10/04/2013,Project Programme expenditure,Official Controls & Enforcement Strategy,G H K Consulting Ltd,30405631,"5,350.00",PO 411915 STUDY: JOB NO. 30259522,EC1R 5BL,Programme
Food Standards Agency,Food Standards Agency,12/04/2013,Service charges,Security & Estates,G4s Integrated Services (Uk) Ltd,M11535,"27,813.58",Service Provison on contract ref. PAU229 March 2013,S81 7QF,Admin
Food Standards Agency,Food Standards Agency,12/04/2013,Service charges,Security & Estates,G4s Integrated Services (Uk) Ltd,M11535,"16,129.33",Service Provison on contract ref. PAU229 March 2013,S81 7QF,Admin
Food Standards Agency,Food Standards Agency,12/04/2013,Service charges,Security & Estates,G4s Integrated Services (Uk) Ltd,M11535,"2,939.91",Service Provison on contract ref. PAU229 March 2013,S81 7QF,Admin
Food Standards Agency,Food Standards Agency,12/04/2013,Office machinery: hire,Security & Estates,G4s Integrated Services (Uk) Ltd,M11535,"3,244.00",Service Provison on contract ref. PAU229 March 2013,S81 7QF,Admin
Food Standards Agency,Food Standards Agency,12/04/2013,Security,Security & Estates,G4s Integrated Services (Uk) Ltd,M11535,"18,775.38",Service Provison on contract ref. PAU229 March 2013,S81 7QF,Admin
Food Standards Agency,Food Standards Agency,16/04/2013,Project Programme expenditure,Analysis & Research Branch,C E F A S,8002475,"23,078.40",PO 409509 PROJECT C3193 OCT - DEC QTR 3 2012/13,NR33 0HT,Programme
Food Standards Agency,Food Standards Agency,16/04/2013,Project Programme expenditure,Analysis & Research Branch,C E F A S,8002697,"23,078.40",PO 409509 Q4 JAN - MAR 13 C3193,NR33 0HT,Programme
Food Standards Agency,Food Standards Agency,16/04/2013,Project Programme expenditure,Analysis & Research Branch,C E F A S,8002806,"125,000.00",PO 409508 PROJECT C2685,NR33 0HT,Programme
Food Standards Agency,Food Standards Agency,16/04/2013,Project Programme expenditure,Analysis & Research Branch,University Of Westminster,9801066,"-4,004.00","PO 407407 CR RE INV'S 980137, 9801038, 9801039, 9801055a",W1W 6UP,Programme
Food Standards Agency,Food Standards Agency,16/04/2013,Project Programme expenditure,Analysis & Research Branch,University Of Westminster,9801066,"-8,706.00","PO 407407 CR RE INV'S 980137, 9801038, 9801039, 9801055a",W1W 6UP,Programme
Food Standards Agency,Food Standards Agency,16/04/2013,Project Programme expenditure,Analysis & Research Branch,University Of Westminster,9801066,"-10,000.00","PO 407407 CR RE INV'S 980137, 9801038, 9801039, 9801055a",W1W 6UP,Programme
Food Standards Agency,Food Standards Agency,16/04/2013,Project Programme expenditure,Analysis & Research Branch,University Of Westminster,9801066,"-12,742.40","PO 407407 CR RE INV'S 980137, 9801038, 9801039, 9801055a",W1W 6UP,Programme
Food Standards Agency,Food Standards Agency,16/04/2013,Project Programme expenditure,Analysis & Research Branch,University Of Westminster,9801066,"-15,078.00","PO 407407 CR RE INV'S 980137, 9801038, 9801039, 9801055a",W1W 6UP,Programme
Food Standards Agency,Food Standards Agency,16/04/2013,Project Programme expenditure,Analysis & Research Branch,University Of Westminster,9801066,"-20,200.40","PO 407407 CR RE INV'S 980137, 9801038, 9801039, 9801055a",W1W 6UP,Programme
Food Standards Agency,Food Standards Agency,16/04/2013,Project Programme expenditure,Analysis & Research Branch,University Of Westminster,9801068,"61,000.00",PO 412581 EVALUATING FSA GUIDANCE ON CROSS CONTAMINATION,W1W 6UP,Programme
Food Standards Agency,Food Standards Agency,16/04/2013,Fixed Assets Additions,Central Operations Hub,Capita Secure Information Solutions Ltd,92921998,"97,105.50",PO 411589 OPERATIONS BUSINESS ENGINE,SN14 0TW,Capital
Food Standards Agency,Food Standards Agency,16/04/2013,Fixed Assets Additions,Central Operations Hub,Capita Secure Information Solutions Ltd,92921998,"56,062.00",PO 411589 OPERATIONS BUSINESS ENGINE,SN14 0TW,Capital
Food Standards Agency,Food Standards Agency,16/04/2013,Fixed Assets Additions,Central Operations Hub,Capita Secure Information Solutions Ltd,92921998,"19,421.10",PO 411589 OPERATIONS BUSINESS ENGINE,SN14 0TW,Capital
Food Standards Agency,Food Standards Agency,16/04/2013,Fixed Assets Additions,Central Operations Hub,Capita Secure Information Solutions Ltd,92921998,"11,212.40",PO 411589 OPERATIONS BUSINESS ENGINE,SN14 0TW,Capital
Food Standards Agency,Food Standards Agency,16/04/2013,Programme Evidence & Research Expenditure,Food Production Branch,Campden Bri,20061178,"90,013.00",PO400794 PROJECT CODE B12008,GL55 6LD,Programme
Food Standards Agency,Food Standards Agency,16/04/2013,Project Programme expenditure,Review of Delivery of Official Controls,T N S Uk Ltd,260111460,"30,908.00",PO 410194 COMP W2 FIELDWORK,W5 1UA,Programme
Food Standards Agency,Food Standards Agency,16/04/2013,Project Programme expenditure,Review of Delivery of Official Controls,T N S Uk Ltd,260119502,"30,909.00",PO 410194 COMP W3 FIELDWORK,W5 1UA,Programme
Food Standards Agency,Food Standards Agency,16/04/2013,Rates/contrib in lieu of rates,Security & Estates,London Borough Of Camden,90313,"1,561,380.00",PO 412745 BUSINESS RATES ON ACC 68351658,WC1H 8NH,Admin
Food Standards Agency,Food Standards Agency,18/04/2013,Programme Evidence & Research Expenditure,Delivery,Newcastle City Council,1.80001E+12,"25,965.80",PO 408260 REF 405 NORTH EAST FG/TEES FG GROUP,NE1 8PB,Programme
Food Standards Agency,Food Standards Agency,18/04/2013,Programme Evidence & Research Expenditure,Delivery,Newcastle City Council,1.80001E+12,"1,000.03",PO 408260 REF 405 NORTH EAST FG/TEES FG GROUP,NE1 8PB,Programme
Food Standards Agency,Food Standards Agency,18/04/2013,Programme Evidence & Research Expenditure,Contaminants Policy & Strategy Unit,University Of Aberdeen,GRSI00030568,"16,451.50",PO410051 DELIVERABLES,AB24 3FX,Programme
Food Standards Agency,Food Standards Agency,18/04/2013,Programme Evidence & Research Expenditure,Contaminants Policy & Strategy Unit,University Of Aberdeen,GRSI00030568,"16,451.50",PO410051 DELIVERABLES,AB24 3FX,Programme
Food Standards Agency,Food Standards Agency,18/04/2013,Programme Evidence & Research Expenditure,EU Regulatory Reform Branch,Scottish Food Quality Cert Ltd,SFQC13242,"28,848.00",PO412231 FS245025,EH28 8NF,Programme
Food Standards Agency,Food Standards Agency,18/04/2013,Programme Evidence & Research Expenditure,EU Regulatory Reform Branch,Scottish Food Quality Cert Ltd,SFQC13242,"6,832.00",PO412231 FS245025,EH28 8NF,Programme
Food Standards Agency,Food Standards Agency,18/04/2013,ASD support services,IT Service Delivery,Capita Secure Information Solutions Ltd,92921872,"268,821.79",PO 412612 CHARGES IN RESPECT OF SERVICES CHARGE FOR MAR 13,SN14 0TW,Admin
Food Standards Agency,Food Standards Agency,18/04/2013,Fixed Assets Additions,IT Service Delivery,Capita Secure Information Solutions Ltd,92922005,"25,000.00",PO 411719 SNOW,SN14 0TW,Capital
Food Standards Agency,Food Standards Agency,18/04/2013,Fixed Assets Additions,IT Service Delivery,Capita Secure Information Solutions Ltd,92922005,"5,000.00",PO 411719 SNOW,SN14 0TW,Capital
Food Standards Agency,Food Standards Agency,22/04/2013,Project Programme expenditure,Delivery,C E F A S,8002695,"26,584.00",PO 408718 QTR 4 1.01.13-31.03.13 C3019,NR33 0HT,Programme
Food Standards Agency,Food Standards Agency,22/04/2013,Programme Evidence & Research Expenditure,Delivery,Maclaren West Ltd,INV007088,"24,050.00",PO 411522 UKFSS FOR FSSNET FS23001,G68 9JS,Programme
Food Standards Agency,Food Standards Agency,22/04/2013,Staff training: Regional and HQ Administration,Central Operations Hub,Capita Secure Information Solutions Ltd,92922349,"14,576.25",FSA 188 OPERATIONS BUSINESS ENGINE TRAINING AND MAINTENANCE,SN14 0TW,Programme
Food Standards Agency,Food Standards Agency,22/04/2013,Staff training: Regional and HQ Administration,Central Operations Hub,Capita Secure Information Solutions Ltd,92922349,"2,915.25",FSA 188 OPERATIONS BUSINESS ENGINE TRAINING AND MAINTENANCE,SN14 0TW,Programme
Food Standards Agency,Food Standards Agency,22/04/2013,IT equipment maintenance,Central Operations Hub,Capita Secure Information Solutions Ltd,92922349,"12,614.05",FSA 188 OPERATIONS BUSINESS ENGINE TRAINING AND MAINTENANCE,SN14 0TW,Programme
Food Standards Agency,Food Standards Agency,22/04/2013,IT equipment maintenance,Central Operations Hub,Capita Secure Information Solutions Ltd,92922349,"2,522.81",FSA 188 OPERATIONS BUSINESS ENGINE TRAINING AND MAINTENANCE,SN14 0TW,Programme
Food Standards Agency,Food Standards Agency,22/04/2013,Utilities,Security & Estates,E D F Energy,EDF0154,"27,139.27",EDF INVOICE 154 MAR 13,PL3 5XQ,Admin
Food Standards Agency,Food Standards Agency,22/04/2013,Utilities,Security & Estates,E D F Energy,EDF0154,"5,427.85",EDF INVOICE 154 MAR 13,PL3 5XQ,Admin
Food Standards Agency,Food Standards Agency,24/04/2013,Subsistence UK,Area 1 Scotland - Cluster 11,Capita Business Travel Ltd,228679251,360,FSA CONF/HOTEL CHGS 13/03 to 28/03,DE21 6BF,Programme
Food Standards Agency,Food Standards Agency,24/04/2013,Subsistence UK,Area 1 Scotland - Cluster 11,Booking Services International Ltd,228793251,306,FSA CONF/HOTEL CHGS 29/03 to 12/04,TA1 2PF,Programme
Food Standards Agency,Food Standards Agency,24/04/2013,Subsistence UK,Area 1 Scotland - Cluster 12,Capita Business Travel Ltd,228679251,"1,345.00",FSA CONF/HOTEL CHGS 13/03 to 28/03,DE21 6BF,Programme
Food Standards Agency,Food Standards Agency,24/04/2013,Travel UK ,Area 1 Scotland - Cluster 12,Capita Business Travel Ltd,LI522904,45.2,CONSOLIDATED INVOICE 1/3/13-31/3/13,DE21 6BF,Programme
Food Standards Agency,Food Standards Agency,24/04/2013,Travel UK ,Area 1 Scotland - Cluster 12,Capita Business Travel Ltd,LI525033,128.3,CONSOLIDATED INVOICE 29/3/13-12/04/13,DE21 6BF,Programme
Food Standards Agency,Food Standards Agency,24/04/2013,Car hire expenses (short term),Area 1 Scotland - Cluster 12,Capita Business Travel Ltd,LI525033,190.82,CONSOLIDATED INVOICE 29/3/13-12/04/13,DE21 6BF,Programme
Food Standards Agency,Food Standards Agency,24/04/2013,Subsistence UK,Area 1 Scotland - Cluster 12,Booking Services International Ltd,228793251,70,FSA CONF/HOTEL CHGS 29/03 to 12/04,TA1 2PF,Programme
Food Standards Agency,Food Standards Agency,24/04/2013,Conference and meeting facilities including accommodation,Area 1 Scotland - Cluster 13,Capita Business Travel Ltd,228679251,90,FSA CONF/HOTEL CHGS 13/03 to 28/03,DE21 6BF,Programme
Food Standards Agency,Food Standards Agency,24/04/2013,Subsistence UK,Area 1 Scotland - Cluster 13,Capita Business Travel Ltd,228679251,350,FSA CONF/HOTEL CHGS 13/03 to 28/03,DE21 6BF,Programme
Food Standards Agency,Food Standards Agency,24/04/2013,Travel UK ,Area 1 Scotland - Cluster 13,Capita Business Travel Ltd,LI522904,-37,CONSOLIDATED INVOICE 1/3/13-31/3/13,DE21 6BF,Programme
Food Standards Agency,Food Standards Agency,24/04/2013,Travel UK ,Area 1 Scotland - Cluster 13,Capita Business Travel Ltd,LI525033,107.9,CONSOLIDATED INVOICE 29/3/13-12/04/13,DE21 6BF,Programme
Food Standards Agency,Food Standards Agency,24/04/2013,Subsistence UK,Area 1 Scotland - Cluster 13,Booking Services International Ltd,228793251,422,FSA CONF/HOTEL CHGS 29/03 to 12/04,TA1 2PF,Programme
Food Standards Agency,Food Standards Agency,24/04/2013,Conference and meeting facilities including accommodation,Area 1 Scotland - Cluster 13,Booking Services International Ltd,228793251,153.05,FSA CONF/HOTEL CHGS 29/03 to 12/04,TA1 2PF,Programme
Food Standards Agency,Food Standards Agency,24/04/2013,Subsistence UK,Area 1 Scotland - Cluster 15,Capita Business Travel Ltd,228679251,102,FSA CONF/HOTEL CHGS 13/03 to 28/03,DE21 6BF,Programme
Food Standards Agency,Food Standards Agency,24/04/2013,Travel UK ,Area 1 Scotland - Cluster 15,Capita Business Travel Ltd,LI522904,114.5,CONSOLIDATED INVOICE 1/3/13-31/3/13,DE21 6BF,Programme
Food Standards Agency,Food Standards Agency,24/04/2013,Travel UK ,Area 1 Scotland - Cluster 15,Capita Business Travel Ltd,LI525033,135.6,CONSOLIDATED INVOICE 29/3/13-12/04/13,DE21 6BF,Programme
Food Standards Agency,Food Standards Agency,24/04/2013,Subsistence UK,Area 1 Scotland - Cluster 15,Booking Services International Ltd,228793251,105,FSA CONF/HOTEL CHGS 29/03 to 12/04,TA1 2PF,Programme
Food Standards Agency,Food Standards Agency,24/04/2013,Subsistence UK,Area 2 Wales - Cluster 21,Capita Business Travel Ltd,228679251,314,FSA CONF/HOTEL CHGS 13/03 to 28/03,DE21 6BF,Programme
Food Standards Agency,Food Standards Agency,24/04/2013,Travel UK ,Area 2 Wales - Cluster 21,Capita Business Travel Ltd,LI522904,-233.5,CONSOLIDATED INVOICE 1/3/13-31/3/13,DE21 6BF,Programme
Food Standards Agency,Food Standards Agency,24/04/2013,Travel UK ,Area 2 Wales - Cluster 21,Capita Business Travel Ltd,LI525033,73.5,CONSOLIDATED INVOICE 29/3/13-12/04/13,DE21 6BF,Programme
Food Standards Agency,Food Standards Agency,24/04/2013,Subsistence UK,Area 2 Wales - Cluster 21,Booking Services International Ltd,228793251,830.88,FSA CONF/HOTEL CHGS 29/03 to 12/04,TA1 2PF,Programme
Food Standards Agency,Food Standards Agency,24/04/2013,Subsistence UK,Area 2 Wales - Cluster 22,Capita Business Travel Ltd,228679251,70,FSA CONF/HOTEL CHGS 13/03 to 28/03,DE21 6BF,Programme
Food Standards Agency,Food Standards Agency,24/04/2013,Subsistence UK,Area 2 Wales - Cluster 22,Booking Services International Ltd,228793251,441.9,FSA CONF/HOTEL CHGS 29/03 to 12/04,TA1 2PF,Programme
Food Standards Agency,Food Standards Agency,24/04/2013,Subsistence UK,Area 2 Wales - Cluster 23,Capita Business Travel Ltd,228679251,549.6,FSA CONF/HOTEL CHGS 13/03 to 28/03,DE21 6BF,Programme
Food Standards Agency,Food Standards Agency,24/04/2013,Travel UK ,Area 2 Wales - Cluster 23,Capita Business Travel Ltd,LI522904,198.7,CONSOLIDATED INVOICE 1/3/13-31/3/13,DE21 6BF,Programme
Food Standards Agency,Food Standards Agency,24/04/2013,Travel UK ,Area 2 Wales - Cluster 23,Capita Business Travel Ltd,LI525033,186.3,CONSOLIDATED INVOICE 29/3/13-12/04/13,DE21 6BF,Programme
Food Standards Agency,Food Standards Agency,24/04/2013,Subsistence UK,Area 2 Wales - Cluster 23,Booking Services International Ltd,228793251,65,FSA CONF/HOTEL CHGS 29/03 to 12/04,TA1 2PF,Programme
Food Standards Agency,Food Standards Agency,24/04/2013,Subsistence UK,Area 3 North West England - Cluster 31,Capita Business Travel Ltd,228679251,"1,268.00",FSA CONF/HOTEL CHGS 13/03 to 28/03,DE21 6BF,Programme
Food Standards Agency,Food Standards Agency,24/04/2013,Travel UK ,Area 3 North West England - Cluster 31,Capita Business Travel Ltd,LI522904,114.8,CONSOLIDATED INVOICE 1/3/13-31/3/13,DE21 6BF,Programme
Food Standards Agency,Food Standards Agency,24/04/2013,Subsistence UK,Area 3 North West England - Cluster 31,Booking Services International Ltd,228793251,140,FSA CONF/HOTEL CHGS 29/03 to 12/04,TA1 2PF,Programme
Food Standards Agency,Food Standards Agency,24/04/2013,Subsistence UK,Area 3 North West England - Cluster 32,Capita Business Travel Ltd,228679251,640,FSA CONF/HOTEL CHGS 13/03 to 28/03,DE21 6BF,Programme
Food Standards Agency,Food Standards Agency,24/04/2013,Travel UK ,Area 3 North West England - Cluster 32,Capita Business Travel Ltd,LI525033,26.9,CONSOLIDATED INVOICE 29/3/13-12/04/13,DE21 6BF,Programme
Food Standards Agency,Food Standards Agency,24/04/2013,Subsistence UK,Area 3 North West England - Cluster 33,Capita Business Travel Ltd,228679251,415,FSA CONF/HOTEL CHGS 13/03 to 28/03,DE21 6BF,Programme
Food Standards Agency,Food Standards Agency,24/04/2013,Subsistence UK,Area 3 North West England - Cluster 33,Capita Business Travel Ltd,228679251,70,FSA CONF/HOTEL CHGS 13/03 to 28/03,DE21 6BF,Programme
Food Standards Agency,Food Standards Agency,24/04/2013,Travel UK ,Area 3 North West England - Cluster 33,Capita Business Travel Ltd,LI522904,-33.5,CONSOLIDATED INVOICE 1/3/13-31/3/13,DE21 6BF,Programme
Food Standards Agency,Food Standards Agency,24/04/2013,Subsistence UK,Area 3 North West England - Cluster 33,Booking Services International Ltd,228793251,350,FSA CONF/HOTEL CHGS 29/03 to 12/04,TA1 2PF,Programme
Food Standards Agency,Food Standards Agency,24/04/2013,Subsistence UK,Area 3 North West England - Cluster 34,Capita Business Travel Ltd,228679251,850,FSA CONF/HOTEL CHGS 13/03 to 28/03,DE21 6BF,Programme
Food Standards Agency,Food Standards Agency,24/04/2013,Travel UK ,Area 3 North West England - Cluster 34,Capita Business Travel Ltd,LI522904,71.8,CONSOLIDATED INVOICE 1/3/13-31/3/13,DE21 6BF,Programme
Food Standards Agency,Food Standards Agency,24/04/2013,Subsistence UK,Area 3 North West England - Cluster 34,Booking Services International Ltd,228793251,280,FSA CONF/HOTEL CHGS 29/03 to 12/04,TA1 2PF,Programme
Food Standards Agency,Food Standards Agency,24/04/2013,Subsistence UK,Area 3 North West England - Cluster 35,Capita Business Travel Ltd,228679251,"1,323.60",FSA CONF/HOTEL CHGS 13/03 to 28/03,DE21 6BF,Programme
Food Standards Agency,Food Standards Agency,24/04/2013,Travel UK ,Area 3 North West England - Cluster 35,Capita Business Travel Ltd,LI522904,-9.6,CONSOLIDATED INVOICE 1/3/13-31/3/13,DE21 6BF,Programme
Food Standards Agency,Food Standards Agency,24/04/2013,Travel UK ,Area 3 North West England - Cluster 35,Capita Business Travel Ltd,LI525033,25.5,CONSOLIDATED INVOICE 29/3/13-12/04/13,DE21 6BF,Programme
Food Standards Agency,Food Standards Agency,24/04/2013,Travel UK ,Area 3 North West England - Cluster 35,Capita Business Travel Ltd,LI525033,54.8,CONSOLIDATED INVOICE 29/3/13-12/04/13,DE21 6BF,Programme
Food Standards Agency,Food Standards Agency,24/04/2013,Subsistence UK,Area 3 North West England - Cluster 35,Booking Services International Ltd,228793251,70,FSA CONF/HOTEL CHGS 29/03 to 12/04,TA1 2PF,Programme
Food Standards Agency,Food Standards Agency,24/04/2013,Subsistence UK,Area 3 North West England - Cluster 36,Capita Business Travel Ltd,228679251,770,FSA CONF/HOTEL CHGS 13/03 to 28/03,DE21 6BF,Programme
Food Standards Agency,Food Standards Agency,24/04/2013,Travel UK ,Area 3 North West England - Cluster 36,Capita Business Travel Ltd,LI522904,-151,CONSOLIDATED INVOICE 1/3/13-31/3/13,DE21 6BF,Programme
Food Standards Agency,Food Standards Agency,24/04/2013,Travel UK ,Area 3 North West England - Cluster 36,Capita Business Travel Ltd,LI525033,46.5,CONSOLIDATED INVOICE 29/3/13-12/04/13,DE21 6BF,Programme
Food Standards Agency,Food Standards Agency,24/04/2013,Subsistence UK,Area 3 North West England - Cluster 36,Booking Services International Ltd,228793251,70,FSA CONF/HOTEL CHGS 29/03 to 12/04,TA1 2PF,Programme
Food Standards Agency,Food Standards Agency,24/04/2013,Subsistence UK,Area 4 North East England - Cluster 41,Capita Business Travel Ltd,228679251,140,FSA CONF/HOTEL CHGS 13/03 to 28/03,DE21 6BF,Programme
Food Standards Agency,Food Standards Agency,24/04/2013,Subsistence UK,Area 4 North East England - Cluster 43,Capita Business Travel Ltd,228679251,738,FSA CONF/HOTEL CHGS 13/03 to 28/03,DE21 6BF,Programme
Food Standards Agency,Food Standards Agency,24/04/2013,Subsistence UK,Area 4 North East England - Cluster 44,Capita Business Travel Ltd,228679251,70,FSA CONF/HOTEL CHGS 13/03 to 28/03,DE21 6BF,Programme
Food Standards Agency,Food Standards Agency,24/04/2013,Travel UK ,Area 4 North East England - Cluster 44,Capita Business Travel Ltd,LI522904,497.3,CONSOLIDATED INVOICE 1/3/13-31/3/13,DE21 6BF,Programme
Food Standards Agency,Food Standards Agency,24/04/2013,Travel UK ,Area 4 North East England - Cluster 44,Capita Business Travel Ltd,LI525033,29.6,CONSOLIDATED INVOICE 29/3/13-12/04/13,DE21 6BF,Programme
Food Standards Agency,Food Standards Agency,24/04/2013,Subsistence UK,Area 4 North East England - Cluster 45,Capita Business Travel Ltd,228679251,214,FSA CONF/HOTEL CHGS 13/03 to 28/03,DE21 6BF,Programme
Food Standards Agency,Food Standards Agency,24/04/2013,Travel UK ,Area 4 North East England - Cluster 45,Capita Business Travel Ltd,LI522904,80.4,CONSOLIDATED INVOICE 1/3/13-31/3/13,DE21 6BF,Programme
Food Standards Agency,Food Standards Agency,24/04/2013,Subsistence UK,Area 4 North East England - Cluster 45,Booking Services International Ltd,228793251,71.1,FSA CONF/HOTEL CHGS 29/03 to 12/04,TA1 2PF,Programme
Food Standards Agency,Food Standards Agency,24/04/2013,Subsistence UK,Area 4 North East England - Cluster 46,Capita Business Travel Ltd,228679251,777.6,FSA CONF/HOTEL CHGS 13/03 to 28/03,DE21 6BF,Programme
Food Standards Agency,Food Standards Agency,24/04/2013,Travel UK ,Area 4 North East England - Cluster 46,Capita Business Travel Ltd,LI525033,56.9,CONSOLIDATED INVOICE 29/3/13-12/04/13,DE21 6BF,Programme
Food Standards Agency,Food Standards Agency,24/04/2013,Subsistence UK,Area 4 North East England - Cluster 46,Booking Services International Ltd,228793251,441.9,FSA CONF/HOTEL CHGS 29/03 to 12/04,TA1 2PF,Programme
Food Standards Agency,Food Standards Agency,24/04/2013,Subsistence UK,Area 4 North East England - Cluster 47,Capita Business Travel Ltd,228679251,"1,158.00",FSA CONF/HOTEL CHGS 13/03 to 28/03,DE21 6BF,Programme
Food Standards Agency,Food Standards Agency,24/04/2013,Travel UK ,Area 4 North East England - Cluster 47,Capita Business Travel Ltd,LI522904,139.9,CONSOLIDATED INVOICE 1/3/13-31/3/13,DE21 6BF,Programme
Food Standards Agency,Food Standards Agency,24/04/2013,Travel UK ,Area 4 North East England - Cluster 48,Capita Business Travel Ltd,LI522904,-283,CONSOLIDATED INVOICE 1/3/13-31/3/13,DE21 6BF,Programme
Food Standards Agency,Food Standards Agency,24/04/2013,Subsistence UK,Area 4 North East England - Cluster 48,Booking Services International Ltd,228793251,140,FSA CONF/HOTEL CHGS 29/03 to 12/04,TA1 2PF,Programme
Food Standards Agency,Food Standards Agency,24/04/2013,Travel UK ,Area 5 South West England - Cluster 51,Capita Business Travel Ltd,LI522904,82.3,CONSOLIDATED INVOICE 1/3/13-31/3/13,DE21 6BF,Programme
Food Standards Agency,Food Standards Agency,24/04/2013,Subsistence UK,Area 5 South West England - Cluster 51,Booking Services International Ltd,228793251,86,FSA CONF/HOTEL CHGS 29/03 to 12/04,TA1 2PF,Programme
Food Standards Agency,Food Standards Agency,24/04/2013,Travel UK ,Area 5 South West England - Cluster 52,Capita Business Travel Ltd,LI522904,119.6,CONSOLIDATED INVOICE 1/3/13-31/3/13,DE21 6BF,Programme
Food Standards Agency,Food Standards Agency,24/04/2013,Travel UK ,Area 5 South West England - Cluster 52,Capita Business Travel Ltd,LI525033,82.5,CONSOLIDATED INVOICE 29/3/13-12/04/13,DE21 6BF,Programme
Food Standards Agency,Food Standards Agency,24/04/2013,Subsistence UK,Area 5 South West England - Cluster 52,Booking Services International Ltd,228793251,86,FSA CONF/HOTEL CHGS 29/03 to 12/04,TA1 2PF,Programme
Food Standards Agency,Food Standards Agency,24/04/2013,Subsistence UK,Area 5 South West England - Cluster 53,Capita Business Travel Ltd,228679251,"1,545.00",FSA CONF/HOTEL CHGS 13/03 to 28/03,DE21 6BF,Programme
Food Standards Agency,Food Standards Agency,24/04/2013,Travel UK ,Area 5 South West England - Cluster 53,Capita Business Travel Ltd,LI522904,122.1,CONSOLIDATED INVOICE 1/3/13-31/3/13,DE21 6BF,Programme
Food Standards Agency,Food Standards Agency,24/04/2013,Travel UK ,Area 5 South West England - Cluster 53,Capita Business Travel Ltd,LI525033,121.2,CONSOLIDATED INVOICE 29/3/13-12/04/13,DE21 6BF,Programme
Food Standards Agency,Food Standards Agency,24/04/2013,Subsistence UK,Area 5 South West England - Cluster 53,Booking Services International Ltd,228793251,86,FSA CONF/HOTEL CHGS 29/03 to 12/04,TA1 2PF,Programme
Food Standards Agency,Food Standards Agency,24/04/2013,Subsistence UK,Area 5 South West England - Cluster 54,Capita Business Travel Ltd,228679251,86,FSA CONF/HOTEL CHGS 13/03 to 28/03,DE21 6BF,Programme
Food Standards Agency,Food Standards Agency,24/04/2013,Subsistence UK,Area 5 South West England - Cluster 54,Booking Services International Ltd,228793251,156,FSA CONF/HOTEL CHGS 29/03 to 12/04,TA1 2PF,Programme
Food Standards Agency,Food Standards Agency,24/04/2013,Subsistence UK,Area 5 South West England - Cluster 55,Capita Business Travel Ltd,228679251,70,FSA CONF/HOTEL CHGS 13/03 to 28/03,DE21 6BF,Programme
Food Standards Agency,Food Standards Agency,24/04/2013,Travel UK ,Area 5 South West England - Cluster 55,Capita Business Travel Ltd,LI522904,134.7,CONSOLIDATED INVOICE 1/3/13-31/3/13,DE21 6BF,Programme
Food Standards Agency,Food Standards Agency,24/04/2013,Travel UK ,Area 5 South West England - Cluster 55,Capita Business Travel Ltd,LI525033,277.9,CONSOLIDATED INVOICE 29/3/13-12/04/13,DE21 6BF,Programme
Food Standards Agency,Food Standards Agency,24/04/2013,Travel UK ,Area 5 South West England - Cluster 56,Capita Business Travel Ltd,LI522904,181.6,CONSOLIDATED INVOICE 1/3/13-31/3/13,DE21 6BF,Programme
Food Standards Agency,Food Standards Agency,24/04/2013,Subsistence UK,Area 5 South West England - Cluster 56,Booking Services International Ltd,228793251,556,FSA CONF/HOTEL CHGS 29/03 to 12/04,TA1 2PF,Programme
Food Standards Agency,Food Standards Agency,24/04/2013,Subsistence UK,Area 5 South West England - Cluster 57,Capita Business Travel Ltd,228679251,311.6,FSA CONF/HOTEL CHGS 13/03 to 28/03,DE21 6BF,Programme
Food Standards Agency,Food Standards Agency,24/04/2013,Travel UK ,Area 5 South West England - Cluster 57,Capita Business Travel Ltd,LI522904,125.8,CONSOLIDATED INVOICE 1/3/13-31/3/13,DE21 6BF,Programme
Food Standards Agency,Food Standards Agency,24/04/2013,Travel UK ,Area 5 South West England - Cluster 57,Capita Business Travel Ltd,LI525033,146.2,CONSOLIDATED INVOICE 29/3/13-12/04/13,DE21 6BF,Programme
Food Standards Agency,Food Standards Agency,24/04/2013,Subsistence UK,Area 5 South West England - Cluster 57,Booking Services International Ltd,228793251,156,FSA CONF/HOTEL CHGS 29/03 to 12/04,TA1 2PF,Programme
Food Standards Agency,Food Standards Agency,24/04/2013,Conference and meeting facilities including accommodation,Area 5 South West England - Cluster 57,Booking Services International Ltd,228793251,40,FSA CONF/HOTEL CHGS 29/03 to 12/04,TA1 2PF,Programme
Food Standards Agency,Food Standards Agency,24/04/2013,Subsistence UK,Area 6 South East England - Cluster 61,Capita Business Travel Ltd,228679251,"1,863.20",FSA CONF/HOTEL CHGS 13/03 to 28/03,DE21 6BF,Programme
Food Standards Agency,Food Standards Agency,24/04/2013,Travel UK ,Area 6 South East England - Cluster 61,Capita Business Travel Ltd,LI522904,153.7,CONSOLIDATED INVOICE 1/3/13-31/3/13,DE21 6BF,Programme
Food Standards Agency,Food Standards Agency,24/04/2013,Travel UK ,Area 6 South East England - Cluster 61,Capita Business Travel Ltd,LI525033,194.3,CONSOLIDATED INVOICE 29/3/13-12/04/13,DE21 6BF,Programme
Food Standards Agency,Food Standards Agency,24/04/2013,Subsistence UK,Area 6 South East England - Cluster 62,Capita Business Travel Ltd,228679251,"1,145.20",FSA CONF/HOTEL CHGS 13/03 to 28/03,DE21 6BF,Programme
Food Standards Agency,Food Standards Agency,24/04/2013,Travel UK ,Area 6 South East England - Cluster 62,Capita Business Travel Ltd,LI522904,411.1,CONSOLIDATED INVOICE 1/3/13-31/3/13,DE21 6BF,Programme
Food Standards Agency,Food Standards Agency,24/04/2013,Travel UK ,Area 6 South East England - Cluster 62,Capita Business Travel Ltd,LI525033,339.2,CONSOLIDATED INVOICE 29/3/13-12/04/13,DE21 6BF,Programme
Food Standards Agency,Food Standards Agency,24/04/2013,Subsistence UK,Area 6 South East England - Cluster 62,Booking Services International Ltd,228793251,64.95,FSA CONF/HOTEL CHGS 29/03 to 12/04,TA1 2PF,Programme
Food Standards Agency,Food Standards Agency,24/04/2013,Subsistence UK,Area 6 South East England - Cluster 63,Capita Business Travel Ltd,228679251,746.4,FSA CONF/HOTEL CHGS 13/03 to 28/03,DE21 6BF,Programme
Food Standards Agency,Food Standards Agency,24/04/2013,Travel UK ,Area 6 South East England - Cluster 63,Capita Business Travel Ltd,LI522904,489.2,CONSOLIDATED INVOICE 1/3/13-31/3/13,DE21 6BF,Programme
Food Standards Agency,Food Standards Agency,24/04/2013,Travel UK ,Area 6 South East England - Cluster 63,Capita Business Travel Ltd,LI525033,429,CONSOLIDATED INVOICE 29/3/13-12/04/13,DE21 6BF,Programme
Food Standards Agency,Food Standards Agency,24/04/2013,Subsistence UK,Area 6 South East England - Cluster 64,Capita Business Travel Ltd,228679251,542.4,FSA CONF/HOTEL CHGS 13/03 to 28/03,DE21 6BF,Programme
Food Standards Agency,Food Standards Agency,24/04/2013,Travel UK ,Area 6 South East England - Cluster 64,Capita Business Travel Ltd,LI522904,104.85,CONSOLIDATED INVOICE 1/3/13-31/3/13,DE21 6BF,Programme
Food Standards Agency,Food Standards Agency,24/04/2013,Travel UK ,Area 6 South East England - Cluster 64,Capita Business Travel Ltd,LI525033,530.7,CONSOLIDATED INVOICE 29/3/13-12/04/13,DE21 6BF,Programme
Food Standards Agency,Food Standards Agency,24/04/2013,Subsistence UK,Area 6 South East England - Cluster 64,Booking Services International Ltd,228793251,135.6,FSA CONF/HOTEL CHGS 29/03 to 12/04,TA1 2PF,Programme
Food Standards Agency,Food Standards Agency,24/04/2013,Subsistence UK,Area 6 South East England - Cluster 65,Capita Business Travel Ltd,228679251,140,FSA CONF/HOTEL CHGS 13/03 to 28/03,DE21 6BF,Programme
Food Standards Agency,Food Standards Agency,24/04/2013,Travel UK ,Area 6 South East England - Cluster 65,Capita Business Travel Ltd,LI522904,606.5,CONSOLIDATED INVOICE 1/3/13-31/3/13,DE21 6BF,Programme
Food Standards Agency,Food Standards Agency,24/04/2013,Travel UK ,Area 6 South East England - Cluster 65,Capita Business Travel Ltd,LI525033,558.4,CONSOLIDATED INVOICE 29/3/13-12/04/13,DE21 6BF,Programme
Food Standards Agency,Food Standards Agency,24/04/2013,Subsistence UK,Area 6 South East England - Cluster 65,Booking Services International Ltd,228793251,140,FSA CONF/HOTEL CHGS 29/03 to 12/04,TA1 2PF,Programme
Food Standards Agency,Food Standards Agency,24/04/2013,Conference and meeting facilities including accommodation,Area 6 South East England - Cluster 66,Capita Business Travel Ltd,228679251,304.5,FSA CONF/HOTEL CHGS 13/03 to 28/03,DE21 6BF,Programme
Food Standards Agency,Food Standards Agency,24/04/2013,Travel UK ,Area 6 South East England - Cluster 66,Capita Business Travel Ltd,LI522904,185,CONSOLIDATED INVOICE 1/3/13-31/3/13,DE21 6BF,Programme
Food Standards Agency,Food Standards Agency,24/04/2013,Travel UK ,Area 6 South East England - Cluster 66,Capita Business Travel Ltd,LI525033,213.1,CONSOLIDATED INVOICE 29/3/13-12/04/13,DE21 6BF,Programme
Food Standards Agency,Food Standards Agency,24/04/2013,Subsistence UK,Chief Executive & Private Office,Capita Business Travel Ltd,228679251,365,FSA CONF/HOTEL CHGS 13/03 to 28/03,DE21 6BF,Admin
Food Standards Agency,Food Standards Agency,24/04/2013,Travel UK ,Chief Executive & Private Office,Capita Business Travel Ltd,LI522904,-294.5,CONSOLIDATED INVOICE 1/3/13-31/3/13,DE21 6BF,Admin
Food Standards Agency,Food Standards Agency,24/04/2013,Travel UK ,Chief Executive & Private Office,Capita Business Travel Ltd,LI525033,"1,481.00",CONSOLIDATED INVOICE 29/3/13-12/04/13,DE21 6BF,Admin
Food Standards Agency,Food Standards Agency,24/04/2013,Subsistence UK,Chair & Deputy Chair,Capita Business Travel Ltd,228679251,200.6,FSA CONF/HOTEL CHGS 13/03 to 28/03,DE21 6BF,Admin
Food Standards Agency,Food Standards Agency,24/04/2013,Travel UK ,Chair & Deputy Chair,Capita Business Travel Ltd,LI522904,96.9,CONSOLIDATED INVOICE 1/3/13-31/3/13,DE21 6BF,Admin
Food Standards Agency,Food Standards Agency,24/04/2013,Travel UK ,Chair & Deputy Chair,Capita Business Travel Ltd,LI525033,124.9,CONSOLIDATED INVOICE 29/3/13-12/04/13,DE21 6BF,Admin
Food Standards Agency,Food Standards Agency,24/04/2013,Subsistence UK,FSA Board,Capita Business Travel Ltd,228679251,"2,850.00",FSA CONF/HOTEL CHGS 13/03 to 28/03,DE21 6BF,Admin
Food Standards Agency,Food Standards Agency,24/04/2013,Travel UK ,FSA Board,Capita Business Travel Ltd,LI522904,0,CONSOLIDATED INVOICE 1/3/13-31/3/13,DE21 6BF,Admin
Food Standards Agency,Food Standards Agency,24/04/2013,Travel UK ,FSA Board,Capita Business Travel Ltd,LI522904,816.47,CONSOLIDATED INVOICE 1/3/13-31/3/13,DE21 6BF,Admin
Food Standards Agency,Food Standards Agency,24/04/2013,International Travel,FSA Board,Capita Business Travel Ltd,LI522904,312.54,CONSOLIDATED INVOICE 1/3/13-31/3/13,DE21 6BF,Admin
Food Standards Agency,Food Standards Agency,24/04/2013,Travel UK ,FSA Board,Capita Business Travel Ltd,LI525033,574.47,CONSOLIDATED INVOICE 29/3/13-12/04/13,DE21 6BF,Admin
Food Standards Agency,Food Standards Agency,24/04/2013,Subsistence UK,Legal Branch A,Capita Business Travel Ltd,228679251,78,FSA CONF/HOTEL CHGS 13/03 to 28/03,DE21 6BF,Admin
Food Standards Agency,Food Standards Agency,24/04/2013,Travel UK ,Legal Branch A,Capita Business Travel Ltd,LI522904,85.8,CONSOLIDATED INVOICE 1/3/13-31/3/13,DE21 6BF,Admin
Food Standards Agency,Food Standards Agency,24/04/2013,Travel UK ,Legal Branch A,Capita Business Travel Ltd,LI525033,74.4,CONSOLIDATED INVOICE 29/3/13-12/04/13,DE21 6BF,Admin
Food Standards Agency,Food Standards Agency,24/04/2013,Subsistence UK,Legal Branch A,Booking Services International Ltd,228793251,135.6,FSA CONF/HOTEL CHGS 29/03 to 12/04,TA1 2PF,Admin
Food Standards Agency,Food Standards Agency,24/04/2013,Subsistence UK,Investigations,Capita Business Travel Ltd,228679251,418.2,FSA CONF/HOTEL CHGS 13/03 to 28/03,DE21 6BF,Admin
Food Standards Agency,Food Standards Agency,24/04/2013,Travel UK ,Investigations,Capita Business Travel Ltd,LI522904,833.4,CONSOLIDATED INVOICE 1/3/13-31/3/13,DE21 6BF,Admin
Food Standards Agency,Food Standards Agency,24/04/2013,International Travel,Investigations,Capita Business Travel Ltd,LI522904,129.75,CONSOLIDATED INVOICE 1/3/13-31/3/13,DE21 6BF,Admin
Food Standards Agency,Food Standards Agency,24/04/2013,Travel UK ,Investigations,Capita Business Travel Ltd,LI525033,539.1,CONSOLIDATED INVOICE 29/3/13-12/04/13,DE21 6BF,Admin
Food Standards Agency,Food Standards Agency,24/04/2013,Subsistence UK,Investigations,Booking Services International Ltd,228793251,669,FSA CONF/HOTEL CHGS 29/03 to 12/04,TA1 2PF,Admin
Food Standards Agency,Food Standards Agency,24/04/2013,Subsistence UK,Chief Scientist,Capita Business Travel Ltd,228679251,140,FSA CONF/HOTEL CHGS 13/03 to 28/03,DE21 6BF,Admin
Food Standards Agency,Food Standards Agency,24/04/2013,Travel UK ,Chief Scientist,Capita Business Travel Ltd,LI522904,353.4,CONSOLIDATED INVOICE 1/3/13-31/3/13,DE21 6BF,Admin
Food Standards Agency,Food Standards Agency,24/04/2013,Travel UK ,Chief Scientist,Capita Business Travel Ltd,LI525033,268.6,CONSOLIDATED INVOICE 29/3/13-12/04/13,DE21 6BF,Admin
Food Standards Agency,Food Standards Agency,24/04/2013,Subsistence UK,Chief Scientist,Booking Services International Ltd,228793251,"3,241.40",FSA CONF/HOTEL CHGS 29/03 to 12/04,TA1 2PF,Admin
Food Standards Agency,Food Standards Agency,24/04/2013,Conference and meeting facilities including accommodation,Chief Scientist,Booking Services International Ltd,228793251,198.74,FSA CONF/HOTEL CHGS 29/03 to 12/04,TA1 2PF,Admin
Food Standards Agency,Food Standards Agency,24/04/2013,Subsistence UK,Analysis & Research Branch,Capita Business Travel Ltd,228679251,140,FSA CONF/HOTEL CHGS 13/03 to 28/03,DE21 6BF,Admin
Food Standards Agency,Food Standards Agency,24/04/2013,Travel UK ,Analysis & Research Branch,Capita Business Travel Ltd,LI522904,"1,140.52",CONSOLIDATED INVOICE 1/3/13-31/3/13,DE21 6BF,Admin
Food Standards Agency,Food Standards Agency,24/04/2013,Travel UK ,Analysis & Research Branch,Capita Business Travel Ltd,LI525033,552.47,CONSOLIDATED INVOICE 29/3/13-12/04/13,DE21 6BF,Admin
Food Standards Agency,Food Standards Agency,24/04/2013,International Travel,Analysis & Research Branch,Capita Business Travel Ltd,LI525033,290,CONSOLIDATED INVOICE 29/3/13-12/04/13,DE21 6BF,Admin
Food Standards Agency,Food Standards Agency,24/04/2013,Subsistence UK,Comms Directors Office,Capita Business Travel Ltd,228679251,674.2,FSA CONF/HOTEL CHGS 13/03 to 28/03,DE21 6BF,Admin
Food Standards Agency,Food Standards Agency,24/04/2013,Conference and meeting facilities including accommodation,Comms Directors Office,Capita Business Travel Ltd,228679251,992,FSA CONF/HOTEL CHGS 13/03 to 28/03,DE21 6BF,Admin
Food Standards Agency,Food Standards Agency,24/04/2013,Travel UK ,Comms Directors Office,Capita Business Travel Ltd,LI522904,474.64,CONSOLIDATED INVOICE 1/3/13-31/3/13,DE21 6BF,Admin
Food Standards Agency,Food Standards Agency,24/04/2013,Travel UK ,Comms Directors Office,Capita Business Travel Ltd,LI522904,"1,253.61",CONSOLIDATED INVOICE 1/3/13-31/3/13,DE21 6BF,Admin
Food Standards Agency,Food Standards Agency,24/04/2013,Car hire expenses (short term),Comms Directors Office,Capita Business Travel Ltd,LI522904,248.45,CONSOLIDATED INVOICE 1/3/13-31/3/13,DE21 6BF,Admin
Food Standards Agency,Food Standards Agency,24/04/2013,Travel UK ,Comms Directors Office,Capita Business Travel Ltd,LI525033,"1,051.80",CONSOLIDATED INVOICE 29/3/13-12/04/13,DE21 6BF,Admin
Food Standards Agency,Food Standards Agency,24/04/2013,Subsistence UK,Comms Directors Office,Booking Services International Ltd,228793251,812.8,FSA CONF/HOTEL CHGS 29/03 to 12/04,TA1 2PF,Admin
Food Standards Agency,Food Standards Agency,24/04/2013,Subsistence UK,Comms Directors Office,Booking Services International Ltd,228793251,76,FSA CONF/HOTEL CHGS 29/03 to 12/04,TA1 2PF,Admin
Food Standards Agency,Food Standards Agency,24/04/2013,Travel UK ,FSA Operations Director & Support,Capita Business Travel Ltd,LI525033,377.7,CONSOLIDATED INVOICE 29/3/13-12/04/13,DE21 6BF,Programme
Food Standards Agency,Food Standards Agency,24/04/2013,Subsistence UK,FSA Operations Director & Support,Booking Services International Ltd,228793251,300,FSA CONF/HOTEL CHGS 29/03 to 12/04,TA1 2PF,Programme
Food Standards Agency,Food Standards Agency,24/04/2013,Subsistence UK,Approvals & Veterinary Advice,Capita Business Travel Ltd,228679251,"1,677.40",FSA CONF/HOTEL CHGS 13/03 to 28/03,DE21 6BF,Programme
Food Standards Agency,Food Standards Agency,24/04/2013,Travel UK ,Approvals & Veterinary Advice,Capita Business Travel Ltd,LI522904,"1,680.10",CONSOLIDATED INVOICE 1/3/13-31/3/13,DE21 6BF,Programme
Food Standards Agency,Food Standards Agency,24/04/2013,Travel UK ,Approvals & Veterinary Advice,Capita Business Travel Ltd,LI525033,"1,326.40",CONSOLIDATED INVOICE 29/3/13-12/04/13,DE21 6BF,Programme
Food Standards Agency,Food Standards Agency,24/04/2013,Subsistence UK,Approvals & Veterinary Advice,Booking Services International Ltd,228793251,622,FSA CONF/HOTEL CHGS 29/03 to 12/04,TA1 2PF,Programme
Food Standards Agency,Food Standards Agency,24/04/2013,Subsistence UK,LAALD HoD & Support,Capita Business Travel Ltd,228679251,"2,354.40",FSA CONF/HOTEL CHGS 13/03 to 28/03,DE21 6BF,Admin
Food Standards Agency,Food Standards Agency,24/04/2013,Conference and meeting facilities including accommodation,LAALD HoD & Support,Capita Business Travel Ltd,228679251,456.9,FSA CONF/HOTEL CHGS 13/03 to 28/03,DE21 6BF,Admin
Food Standards Agency,Food Standards Agency,24/04/2013,Travel UK ,LAALD HoD & Support,Capita Business Travel Ltd,LI522904,"2,214.30",CONSOLIDATED INVOICE 1/3/13-31/3/13,DE21 6BF,Admin
Food Standards Agency,Food Standards Agency,24/04/2013,Travel UK ,LAALD HoD & Support,Capita Business Travel Ltd,LI525033,"2,715.50",CONSOLIDATED INVOICE 29/3/13-12/04/13,DE21 6BF,Admin
Food Standards Agency,Food Standards Agency,24/04/2013,Subsistence UK,LAALD HoD & Support,Booking Services International Ltd,228793251,"1,205.40",FSA CONF/HOTEL CHGS 29/03 to 12/04,TA1 2PF,Admin
Food Standards Agency,Food Standards Agency,24/04/2013,Subsistence UK,Incidents & Food Fraud,Capita Business Travel Ltd,228679251,"1,840.00",FSA CONF/HOTEL CHGS 13/03 to 28/03,DE21 6BF,Admin
Food Standards Agency,Food Standards Agency,24/04/2013,Conference and meeting facilities including accommodation,Incidents & Food Fraud,Capita Business Travel Ltd,228679251,690,FSA CONF/HOTEL CHGS 13/03 to 28/03,DE21 6BF,Admin
Food Standards Agency,Food Standards Agency,24/04/2013,Travel UK ,Incidents & Food Fraud,Capita Business Travel Ltd,LI522904,-240.2,CONSOLIDATED INVOICE 1/3/13-31/3/13,DE21 6BF,Admin
Food Standards Agency,Food Standards Agency,24/04/2013,Travel UK ,Incidents & Food Fraud,Capita Business Travel Ltd,LI525033,239.3,CONSOLIDATED INVOICE 29/3/13-12/04/13,DE21 6BF,Admin
Food Standards Agency,Food Standards Agency,24/04/2013,Subsistence UK,Incidents & Food Fraud,Booking Services International Ltd,228793251,422,FSA CONF/HOTEL CHGS 29/03 to 12/04,TA1 2PF,Admin
Food Standards Agency,Food Standards Agency,24/04/2013,Subsistence UK,Delivery,Capita Business Travel Ltd,228679251,"3,988.60",FSA CONF/HOTEL CHGS 13/03 to 28/03,DE21 6BF,Admin
Food Standards Agency,Food Standards Agency,24/04/2013,Travel UK ,Delivery,Capita Business Travel Ltd,LI522904,161.7,CONSOLIDATED INVOICE 1/3/13-31/3/13,DE21 6BF,Admin
Food Standards Agency,Food Standards Agency,24/04/2013,Travel UK ,Delivery,Capita Business Travel Ltd,LI522904,"1,423.40",CONSOLIDATED INVOICE 1/3/13-31/3/13,DE21 6BF,Admin
Food Standards Agency,Food Standards Agency,24/04/2013,International Travel,Delivery,Capita Business Travel Ltd,LI522904,178.75,CONSOLIDATED INVOICE 1/3/13-31/3/13,DE21 6BF,Admin
Food Standards Agency,Food Standards Agency,24/04/2013,Travel UK ,Delivery,Capita Business Travel Ltd,LI525033,"1,879.25",CONSOLIDATED INVOICE 29/3/13-12/04/13,DE21 6BF,Admin
Food Standards Agency,Food Standards Agency,24/04/2013,Subsistence UK,Delivery,Booking Services International Ltd,228793251,389.6,FSA CONF/HOTEL CHGS 29/03 to 12/04,TA1 2PF,Admin
Food Standards Agency,Food Standards Agency,24/04/2013,Conference and meeting facilities including accommodation,Delivery,Booking Services International Ltd,228793251,"2,527.50",FSA CONF/HOTEL CHGS 29/03 to 12/04,TA1 2PF,Admin
Food Standards Agency,Food Standards Agency,24/04/2013,Subsistence UK,Delivery,Booking Services International Ltd,228793251,75,FSA CONF/HOTEL CHGS 29/03 to 12/04,TA1 2PF,Admin
Food Standards Agency,Food Standards Agency,24/04/2013,Travel UK ,Enforcement Policy,Capita Business Travel Ltd,LI522904,24.1,CONSOLIDATED INVOICE 1/3/13-31/3/13,DE21 6BF,Admin
Food Standards Agency,Food Standards Agency,24/04/2013,Travel UK ,Enforcement Policy,Capita Business Travel Ltd,LI525033,188.1,CONSOLIDATED INVOICE 29/3/13-12/04/13,DE21 6BF,Admin
Food Standards Agency,Food Standards Agency,24/04/2013,Subsistence UK,Official Controls & Enforcement Strategy,Capita Business Travel Ltd,228679251,153,FSA CONF/HOTEL CHGS 13/03 to 28/03,DE21 6BF,Admin
Food Standards Agency,Food Standards Agency,24/04/2013,Travel UK ,Official Controls & Enforcement Strategy,Capita Business Travel Ltd,LI522904,117.6,CONSOLIDATED INVOICE 1/3/13-31/3/13,DE21 6BF,Admin
Food Standards Agency,Food Standards Agency,24/04/2013,International Travel,Official Controls & Enforcement Strategy,Capita Business Travel Ltd,LI522904,178.82,CONSOLIDATED INVOICE 1/3/13-31/3/13,DE21 6BF,Admin
Food Standards Agency,Food Standards Agency,24/04/2013,Travel UK ,Official Controls & Enforcement Strategy,Capita Business Travel Ltd,LI525033,238.9,CONSOLIDATED INVOICE 29/3/13-12/04/13,DE21 6BF,Admin
Food Standards Agency,Food Standards Agency,24/04/2013,Subsistence UK,Operational Delivery,Capita Business Travel Ltd,228679251,"3,453.60",FSA CONF/HOTEL CHGS 13/03 to 28/03,DE21 6BF,Programme
Food Standards Agency,Food Standards Agency,24/04/2013,Conference and meeting facilities including accommodation,Operational Delivery,Capita Business Travel Ltd,228679251,704,FSA CONF/HOTEL CHGS 13/03 to 28/03,DE21 6BF,Programme
Food Standards Agency,Food Standards Agency,24/04/2013,Travel UK ,Operational Delivery,Capita Business Travel Ltd,LI522904,"4,562.29",CONSOLIDATED INVOICE 1/3/13-31/3/13,DE21 6BF,Programme
Food Standards Agency,Food Standards Agency,24/04/2013,International Travel,Operational Delivery,Capita Business Travel Ltd,LI522904,129.75,CONSOLIDATED INVOICE 1/3/13-31/3/13,DE21 6BF,Programme
Food Standards Agency,Food Standards Agency,24/04/2013,Travel UK ,Operational Delivery,Capita Business Travel Ltd,LI525033,"2,772.80",CONSOLIDATED INVOICE 29/3/13-12/04/13,DE21 6BF,Programme
Food Standards Agency,Food Standards Agency,24/04/2013,Subsistence UK,Operational Delivery,Booking Services International Ltd,228793251,"3,630.80",FSA CONF/HOTEL CHGS 29/03 to 12/04,TA1 2PF,Programme
Food Standards Agency,Food Standards Agency,24/04/2013,Conference and meeting facilities including accommodation,Operational Delivery,Booking Services International Ltd,228793251,"1,050.00",FSA CONF/HOTEL CHGS 29/03 to 12/04,TA1 2PF,Programme
Food Standards Agency,Food Standards Agency,24/04/2013,Subsistence UK,Wine Standards,Capita Business Travel Ltd,228679251,"1,181.80",FSA CONF/HOTEL CHGS 13/03 to 28/03,DE21 6BF,Programme
Food Standards Agency,Food Standards Agency,24/04/2013,Travel UK ,Wine Standards,Capita Business Travel Ltd,LI522904,698.3,CONSOLIDATED INVOICE 1/3/13-31/3/13,DE21 6BF,Programme
Food Standards Agency,Food Standards Agency,24/04/2013,Travel UK ,Wine Standards,Capita Business Travel Ltd,LI525033,250.1,CONSOLIDATED INVOICE 29/3/13-12/04/13,DE21 6BF,Programme
Food Standards Agency,Food Standards Agency,24/04/2013,Subsistence UK,Wine Standards,Booking Services International Ltd,228793251,69,FSA CONF/HOTEL CHGS 29/03 to 12/04,TA1 2PF,Programme
Food Standards Agency,Food Standards Agency,24/04/2013,Travel UK ,Central Operations Hub,Capita Business Travel Ltd,LI522904,737.13,CONSOLIDATED INVOICE 1/3/13-31/3/13,DE21 6BF,Programme
Food Standards Agency,Food Standards Agency,24/04/2013,Travel UK ,Central Operations Hub,Capita Business Travel Ltd,LI522904,"1,453.20",CONSOLIDATED INVOICE 1/3/13-31/3/13,DE21 6BF,Programme
Food Standards Agency,Food Standards Agency,24/04/2013,Travel UK ,Central Operations Hub,Capita Business Travel Ltd,LI525033,"1,460.00",CONSOLIDATED INVOICE 29/3/13-12/04/13,DE21 6BF,Programme
Food Standards Agency,Food Standards Agency,24/04/2013,Subsistence UK,Central Operations Hub,Capita Business Travel Ltd,228679251,283.2,FSA CONF/HOTEL CHGS 13/03 to 28/03,DE21 6BF,Programme
Food Standards Agency,Food Standards Agency,24/04/2013,Subsistence UK,Central Operations Hub,Booking Services International Ltd,228793251,275.6,FSA CONF/HOTEL CHGS 29/03 to 12/04,TA1 2PF,Programme
Food Standards Agency,Food Standards Agency,24/04/2013,Travel UK ,Contaminants HoD,Capita Business Travel Ltd,LI522904,-39,CONSOLIDATED INVOICE 1/3/13-31/3/13,DE21 6BF,Admin
Food Standards Agency,Food Standards Agency,24/04/2013,Subsistence UK,Chemical Risk Assessment Unit,Capita Business Travel Ltd,228679251,70,FSA CONF/HOTEL CHGS 13/03 to 28/03,DE21 6BF,Admin
Food Standards Agency,Food Standards Agency,24/04/2013,Travel UK ,Chemical Risk Assessment Unit,Capita Business Travel Ltd,LI522904,286.5,CONSOLIDATED INVOICE 1/3/13-31/3/13,DE21 6BF,Admin
Food Standards Agency,Food Standards Agency,24/04/2013,Subsistence UK,Chemical Risk Assessment Unit,Booking Services International Ltd,228793251,123.6,FSA CONF/HOTEL CHGS 29/03 to 12/04,TA1 2PF,Admin
Food Standards Agency,Food Standards Agency,24/04/2013,Subsistence UK,Contaminants Policy & Strategy Unit,Capita Business Travel Ltd,228679251,278.4,FSA CONF/HOTEL CHGS 13/03 to 28/03,DE21 6BF,Admin
Food Standards Agency,Food Standards Agency,24/04/2013,Travel UK ,Contaminants Policy & Strategy Unit,Capita Business Travel Ltd,LI522904,149.8,CONSOLIDATED INVOICE 1/3/13-31/3/13,DE21 6BF,Admin
Food Standards Agency,Food Standards Agency,24/04/2013,International Travel,Contaminants Policy & Strategy Unit,Capita Business Travel Ltd,LI522904,898.12,CONSOLIDATED INVOICE 1/3/13-31/3/13,DE21 6BF,Admin
Food Standards Agency,Food Standards Agency,24/04/2013,Travel UK ,Contaminants Policy & Strategy Unit,Capita Business Travel Ltd,LI525033,188.8,CONSOLIDATED INVOICE 29/3/13-12/04/13,DE21 6BF,Admin
Food Standards Agency,Food Standards Agency,24/04/2013,Subsistence UK,Contaminants Policy & Strategy Unit,Booking Services International Ltd,228793251,266.47,FSA CONF/HOTEL CHGS 29/03 to 12/04,TA1 2PF,Admin
Food Standards Agency,Food Standards Agency,24/04/2013,Subsistence UK,Novel Food Unit,Capita Business Travel Ltd,228679251,119.75,FSA CONF/HOTEL CHGS 13/03 to 28/03,DE21 6BF,Admin
Food Standards Agency,Food Standards Agency,24/04/2013,International Travel,Novel Food Unit,Capita Business Travel Ltd,LI522904,193.75,CONSOLIDATED INVOICE 1/3/13-31/3/13,DE21 6BF,Admin
Food Standards Agency,Food Standards Agency,24/04/2013,Travel UK ,Novel Food Unit,Capita Business Travel Ltd,LI525033,72,CONSOLIDATED INVOICE 29/3/13-12/04/13,DE21 6BF,Admin
Food Standards Agency,Food Standards Agency,24/04/2013,Travel UK ,Hygiene & Microbiology Division HoD,Capita Business Travel Ltd,LI522904,251.85,CONSOLIDATED INVOICE 1/3/13-31/3/13,DE21 6BF,Admin
Food Standards Agency,Food Standards Agency,24/04/2013,Travel UK ,Hygiene & Microbiology Division HoD,Capita Business Travel Ltd,LI525033,508.55,CONSOLIDATED INVOICE 29/3/13-12/04/13,DE21 6BF,Admin
Food Standards Agency,Food Standards Agency,24/04/2013,International Travel,Hygiene & Microbiology Division HoD,Capita Business Travel Ltd,LI525033,144,CONSOLIDATED INVOICE 29/3/13-12/04/13,DE21 6BF,Admin
Food Standards Agency,Food Standards Agency,24/04/2013,Travel UK ,Microbiological Food Safety Branch,Capita Business Travel Ltd,LI522904,78.4,CONSOLIDATED INVOICE 1/3/13-31/3/13,DE21 6BF,Admin
Food Standards Agency,Food Standards Agency,24/04/2013,Travel UK ,Microbiological Food Safety Branch,Capita Business Travel Ltd,LI525033,104.6,CONSOLIDATED INVOICE 29/3/13-12/04/13,DE21 6BF,Admin
Food Standards Agency,Food Standards Agency,24/04/2013,Subsistence UK,Microbiological Food Safety Branch,Booking Services International Ltd,228793251,90,FSA CONF/HOTEL CHGS 29/03 to 12/04,TA1 2PF,Admin
Food Standards Agency,Food Standards Agency,24/04/2013,Travel UK ,Food Production Branch,Capita Business Travel Ltd,LI522904,11.9,CONSOLIDATED INVOICE 1/3/13-31/3/13,DE21 6BF,Admin
Food Standards Agency,Food Standards Agency,24/04/2013,Travel UK ,Food Production Branch,Capita Business Travel Ltd,LI525033,40.4,CONSOLIDATED INVOICE 29/3/13-12/04/13,DE21 6BF,Admin
Food Standards Agency,Food Standards Agency,24/04/2013,Subsistence UK,EU Regulatory Reform Branch,Capita Business Travel Ltd,228679251,270.4,FSA CONF/HOTEL CHGS 13/03 to 28/03,DE21 6BF,Admin
Food Standards Agency,Food Standards Agency,24/04/2013,Travel UK ,EU Regulatory Reform Branch,Capita Business Travel Ltd,LI522904,99.3,CONSOLIDATED INVOICE 1/3/13-31/3/13,DE21 6BF,Admin
Food Standards Agency,Food Standards Agency,24/04/2013,Travel UK ,EU Regulatory Reform Branch,Capita Business Travel Ltd,LI525033,40.4,CONSOLIDATED INVOICE 29/3/13-12/04/13,DE21 6BF,Admin
Food Standards Agency,Food Standards Agency,24/04/2013,International Travel,EU Regulatory Reform Branch,Capita Business Travel Ltd,LI525033,185.25,CONSOLIDATED INVOICE 29/3/13-12/04/13,DE21 6BF,Admin
Food Standards Agency,Food Standards Agency,24/04/2013,Travel UK ,Food Hygiene Policy Branch,Capita Business Travel Ltd,LI522904,262.7,CONSOLIDATED INVOICE 1/3/13-31/3/13,DE21 6BF,Admin
Food Standards Agency,Food Standards Agency,24/04/2013,Travel UK ,Food Hygiene Policy Branch,Capita Business Travel Ltd,LI525033,80.8,CONSOLIDATED INVOICE 29/3/13-12/04/13,DE21 6BF,Admin
Food Standards Agency,Food Standards Agency,24/04/2013,International Travel,Food Hygiene Policy Branch,Capita Business Travel Ltd,LI525033,105.75,CONSOLIDATED INVOICE 29/3/13-12/04/13,DE21 6BF,Admin
Food Standards Agency,Food Standards Agency,24/04/2013,Subsistence UK,Food Hygiene Policy Branch,Booking Services International Ltd,228793251,446.4,FSA CONF/HOTEL CHGS 29/03 to 12/04,TA1 2PF,Admin
Food Standards Agency,Food Standards Agency,24/04/2013,Travel UK ,Foodborne Diseases Branch,Capita Business Travel Ltd,LI525033,40.4,CONSOLIDATED INVOICE 29/3/13-12/04/13,DE21 6BF,Admin
Food Standards Agency,Food Standards Agency,24/04/2013,Subsistence UK,Animal Feed Branch,Capita Business Travel Ltd,228679251,316.37,FSA CONF/HOTEL CHGS 13/03 to 28/03,DE21 6BF,Admin
Food Standards Agency,Food Standards Agency,24/04/2013,Travel UK ,Animal Feed Branch,Capita Business Travel Ltd,LI522904,159.8,CONSOLIDATED INVOICE 1/3/13-31/3/13,DE21 6BF,Admin
Food Standards Agency,Food Standards Agency,24/04/2013,Car hire expenses (short term),Animal Feed Branch,Capita Business Travel Ltd,LI522904,278.26,CONSOLIDATED INVOICE 1/3/13-31/3/13,DE21 6BF,Admin
Food Standards Agency,Food Standards Agency,24/04/2013,Travel UK ,Animal Feed Branch,Capita Business Travel Ltd,LI525033,527.2,CONSOLIDATED INVOICE 29/3/13-12/04/13,DE21 6BF,Admin
Food Standards Agency,Food Standards Agency,24/04/2013,International Travel,Animal Feed Branch,Capita Business Travel Ltd,LI525033,374.1,CONSOLIDATED INVOICE 29/3/13-12/04/13,DE21 6BF,Admin
Food Standards Agency,Food Standards Agency,24/04/2013,Subsistence UK,Animal Feed Branch,Booking Services International Ltd,228793251,615.98,FSA CONF/HOTEL CHGS 29/03 to 12/04,TA1 2PF,Admin
Food Standards Agency,Food Standards Agency,24/04/2013,Conference and meeting facilities including accommodation,Animal Feed Branch,Booking Services International Ltd,228793251,365,FSA CONF/HOTEL CHGS 29/03 to 12/04,TA1 2PF,Admin
Food Standards Agency,Food Standards Agency,24/04/2013,Travel UK ,Allergens,Capita Business Travel Ltd,LI522904,81.2,CONSOLIDATED INVOICE 1/3/13-31/3/13,DE21 6BF,Admin
Food Standards Agency,Food Standards Agency,24/04/2013,Subsistence UK,Additives,Capita Business Travel Ltd,228679251,278.4,FSA CONF/HOTEL CHGS 13/03 to 28/03,DE21 6BF,Admin
Food Standards Agency,Food Standards Agency,24/04/2013,Travel UK ,Additives,Capita Business Travel Ltd,LI522904,-38.6,CONSOLIDATED INVOICE 1/3/13-31/3/13,DE21 6BF,Admin
Food Standards Agency,Food Standards Agency,24/04/2013,Travel UK ,Additives,Capita Business Travel Ltd,LI525033,121.8,CONSOLIDATED INVOICE 29/3/13-12/04/13,DE21 6BF,Admin
Food Standards Agency,Food Standards Agency,24/04/2013,International Travel,Additives,Capita Business Travel Ltd,LI525033,173.75,CONSOLIDATED INVOICE 29/3/13-12/04/13,DE21 6BF,Admin
Food Standards Agency,Food Standards Agency,24/04/2013,Subsistence UK,Food Policy Strategy HoD,Capita Business Travel Ltd,228679251,"1,068.60",FSA CONF/HOTEL CHGS 13/03 to 28/03,DE21 6BF,Admin
Food Standards Agency,Food Standards Agency,24/04/2013,Travel UK ,Food Policy Strategy HoD,Capita Business Travel Ltd,LI522904,"1,465.60",CONSOLIDATED INVOICE 1/3/13-31/3/13,DE21 6BF,Admin
Food Standards Agency,Food Standards Agency,24/04/2013,Car hire expenses (short term),Food Policy Strategy HoD,Capita Business Travel Ltd,LI522904,366.56,CONSOLIDATED INVOICE 1/3/13-31/3/13,DE21 6BF,Admin
Food Standards Agency,Food Standards Agency,24/04/2013,Travel UK ,Food Policy Strategy HoD,Capita Business Travel Ltd,LI525033,"1,157.80",CONSOLIDATED INVOICE 29/3/13-12/04/13,DE21 6BF,Admin
Food Standards Agency,Food Standards Agency,24/04/2013,Project Programme expenditure,Review of Delivery of Official Controls,Quo Vadis Consulting Partners Ltd,981,"78,962.00",PO 409757 CONSULTANCY FEES,KT13 8NA,Programme
Food Standards Agency,Food Standards Agency,24/04/2013,Project Programme expenditure,Review of Delivery of Official Controls,Quo Vadis Consulting Partners Ltd,981,"14,400.00",PO 409757 CONSULTANCY FEES,KT13 8NA,Programme
Food Standards Agency,Food Standards Agency,24/04/2013,Project Programme expenditure,Review of Delivery of Official Controls,Quo Vadis Consulting Partners Ltd,981,"2,880.00",PO 409757 CONSULTANCY FEES,KT13 8NA,Programme
Food Standards Agency,Food Standards Agency,24/04/2013,Subsistence UK,Food Policy Strategy HoD,Booking Services International Ltd,228793251,135.6,FSA CONF/HOTEL CHGS 29/03 to 12/04,TA1 2PF,Admin
Food Standards Agency,Food Standards Agency,24/04/2013,Travel UK ,European & International Strategy,Capita Business Travel Ltd,LI522904,108.75,CONSOLIDATED INVOICE 1/3/13-31/3/13,DE21 6BF,Admin
Food Standards Agency,Food Standards Agency,24/04/2013,Subsistence UK,European & International Strategy,Booking Services International Ltd,228793251,406.8,FSA CONF/HOTEL CHGS 29/03 to 12/04,TA1 2PF,Admin
Food Standards Agency,Food Standards Agency,24/04/2013,Subsistence UK,Planning and Performance,Capita Business Travel Ltd,228679251,"1,115.60",FSA CONF/HOTEL CHGS 13/03 to 28/03,DE21 6BF,Admin
Food Standards Agency,Food Standards Agency,24/04/2013,Conference and meeting facilities including accommodation,Planning and Performance,Capita Business Travel Ltd,228679251,"1,268.00",FSA CONF/HOTEL CHGS 13/03 to 28/03,DE21 6BF,Admin
Food Standards Agency,Food Standards Agency,24/04/2013,Travel UK ,Planning and Performance,Capita Business Travel Ltd,LI522904,46.4,CONSOLIDATED INVOICE 1/3/13-31/3/13,DE21 6BF,Admin
Food Standards Agency,Food Standards Agency,24/04/2013,Travel UK ,Planning and Performance,Capita Business Travel Ltd,LI522904,956.9,CONSOLIDATED INVOICE 1/3/13-31/3/13,DE21 6BF,Admin
Food Standards Agency,Food Standards Agency,24/04/2013,Travel UK ,Planning and Performance,Capita Business Travel Ltd,LI525033,"1,958.05",CONSOLIDATED INVOICE 29/3/13-12/04/13,DE21 6BF,Admin
Food Standards Agency,Food Standards Agency,24/04/2013,Subsistence UK,Planning and Performance,Booking Services International Ltd,228793251,301.2,FSA CONF/HOTEL CHGS 29/03 to 12/04,TA1 2PF,Admin
Food Standards Agency,Food Standards Agency,24/04/2013,Travel UK ,Better Regulations & Sustainable Development,Capita Business Travel Ltd,LI522904,148.4,CONSOLIDATED INVOICE 1/3/13-31/3/13,DE21 6BF,Admin
Food Standards Agency,Food Standards Agency,24/04/2013,Travel UK ,Better Regulations & Sustainable Development,Capita Business Travel Ltd,LI525033,151.8,CONSOLIDATED INVOICE 29/3/13-12/04/13,DE21 6BF,Admin
Food Standards Agency,Food Standards Agency,24/04/2013,Travel UK ,Food Policy Private Office,Capita Business Travel Ltd,LI522904,254.7,CONSOLIDATED INVOICE 1/3/13-31/3/13,DE21 6BF,Admin
Food Standards Agency,Food Standards Agency,24/04/2013,Travel UK ,Food Policy Private Office,Capita Business Travel Ltd,LI525033,629.68,CONSOLIDATED INVOICE 29/3/13-12/04/13,DE21 6BF,Admin
Food Standards Agency,Food Standards Agency,24/04/2013,Subsistence UK,Finance Director & Branch,Capita Business Travel Ltd,228679251,289.2,FSA CONF/HOTEL CHGS 13/03 to 28/03,DE21 6BF,Admin
Food Standards Agency,Food Standards Agency,24/04/2013,Travel UK ,Finance Director & Branch,Capita Business Travel Ltd,LI522904,841.8,CONSOLIDATED INVOICE 1/3/13-31/3/13,DE21 6BF,Admin
Food Standards Agency,Food Standards Agency,24/04/2013,Travel UK ,Finance Director & Branch,Capita Business Travel Ltd,LI525033,782.06,CONSOLIDATED INVOICE 29/3/13-12/04/13,DE21 6BF,Admin
Food Standards Agency,Food Standards Agency,24/04/2013,Subsistence UK,Finance Director & Branch,Booking Services International Ltd,228793251,307.2,FSA CONF/HOTEL CHGS 29/03 to 12/04,TA1 2PF,Admin
Food Standards Agency,Food Standards Agency,24/04/2013,Subsistence UK,HR,Capita Business Travel Ltd,228679251,769.6,FSA CONF/HOTEL CHGS 13/03 to 28/03,DE21 6BF,Admin
Food Standards Agency,Food Standards Agency,24/04/2013,Travel UK ,HR,Capita Business Travel Ltd,LI522904,"1,901.00",CONSOLIDATED INVOICE 1/3/13-31/3/13,DE21 6BF,Admin
Food Standards Agency,Food Standards Agency,24/04/2013,Car hire expenses (short term),HR,Capita Business Travel Ltd,LI522904,491.86,CONSOLIDATED INVOICE 1/3/13-31/3/13,DE21 6BF,Admin
Food Standards Agency,Food Standards Agency,24/04/2013,Travel UK ,HR,Capita Business Travel Ltd,LI525033,"1,948.65",CONSOLIDATED INVOICE 29/3/13-12/04/13,DE21 6BF,Admin
Food Standards Agency,Food Standards Agency,24/04/2013,Subsistence UK,HR,Booking Services International Ltd,228793251,"1,361.10",FSA CONF/HOTEL CHGS 29/03 to 12/04,TA1 2PF,Admin
Food Standards Agency,Food Standards Agency,24/04/2013,Conference and meeting facilities including accommodation,HR,Booking Services International Ltd,228793251,985,FSA CONF/HOTEL CHGS 29/03 to 12/04,TA1 2PF,Admin
Food Standards Agency,Food Standards Agency,24/04/2013,Subsistence UK,Procurement,Capita Business Travel Ltd,228679251,813.6,FSA CONF/HOTEL CHGS 13/03 to 28/03,DE21 6BF,Admin
Food Standards Agency,Food Standards Agency,24/04/2013,Travel UK ,Procurement,Capita Business Travel Ltd,LI522904,697.6,CONSOLIDATED INVOICE 1/3/13-31/3/13,DE21 6BF,Admin
Food Standards Agency,Food Standards Agency,24/04/2013,Conference and meeting facilities including accommodation,Procurement,Capita Business Travel Ltd,LI522904,"8,427.90",CONSOLIDATED INVOICE 1/3/13-31/3/13,DE21 6BF,Admin
Food Standards Agency,Food Standards Agency,24/04/2013,Travel UK ,Procurement,Capita Business Travel Ltd,LI525033,"1,850.30",CONSOLIDATED INVOICE 29/3/13-12/04/13,DE21 6BF,Admin
Food Standards Agency,Food Standards Agency,24/04/2013,Subsistence UK,Procurement,Booking Services International Ltd,228793251,153.6,FSA CONF/HOTEL CHGS 29/03 to 12/04,TA1 2PF,Admin
Food Standards Agency,Food Standards Agency,24/04/2013,Subsistence UK,IT HoD,Capita Business Travel Ltd,228679251,559.2,FSA CONF/HOTEL CHGS 13/03 to 28/03,DE21 6BF,Admin
Food Standards Agency,Food Standards Agency,24/04/2013,Travel UK ,IT HoD,Capita Business Travel Ltd,LI522904,"1,044.70",CONSOLIDATED INVOICE 1/3/13-31/3/13,DE21 6BF,Admin
Food Standards Agency,Food Standards Agency,24/04/2013,Travel UK ,IT HoD,Capita Business Travel Ltd,LI525033,"1,828.10",CONSOLIDATED INVOICE 29/3/13-12/04/13,DE21 6BF,Admin
Food Standards Agency,Food Standards Agency,24/04/2013,Telecomms-data networks & call charges,IT Service Delivery,Level 3 Communications UK Limited,80324940,"43,451.34","MTS LAN / Government IPVPN charges for January, February and March 13",RG24 8NA,Admin
Food Standards Agency,Food Standards Agency,24/04/2013,Telecomms-data networks & call charges,IT Service Delivery,Level 3 Communications UK Limited,80324940,"8,690.27","MTS LAN / Government IPVPN charges for January, February and March 13",RG24 8NA,Admin
Food Standards Agency,Food Standards Agency,24/04/2013,Subsistence UK,IT Service Delivery,Capita Business Travel Ltd,228679251,147.6,FSA CONF/HOTEL CHGS 13/03 to 28/03,DE21 6BF,Admin
Food Standards Agency,Food Standards Agency,24/04/2013,Conference and meeting facilities including accommodation,IT Strategy,Booking Services International Ltd,228793251,715.8,FSA CONF/HOTEL CHGS 29/03 to 12/04,TA1 2PF,Admin
Food Standards Agency,Food Standards Agency,24/04/2013,Subsistence UK,Security & Estates,Capita Business Travel Ltd,228679251,271.2,FSA CONF/HOTEL CHGS 13/03 to 28/03,DE21 6BF,Admin
Food Standards Agency,Food Standards Agency,24/04/2013,Travel UK ,Security & Estates,Capita Business Travel Ltd,LI522904,719.1,CONSOLIDATED INVOICE 1/3/13-31/3/13,DE21 6BF,Admin
Food Standards Agency,Food Standards Agency,24/04/2013,Travel UK ,Security & Estates,Capita Business Travel Ltd,LI525033,137.6,CONSOLIDATED INVOICE 29/3/13-12/04/13,DE21 6BF,Admin
Food Standards Agency,Food Standards Agency,24/04/2013,Subsistence UK,Security & Estates,Booking Services International Ltd,228793251,135.6,FSA CONF/HOTEL CHGS 29/03 to 12/04,TA1 2PF,Admin
Food Standards Agency,Food Standards Agency,24/04/2013,Subsistence UK,Internal Audit,Capita Business Travel Ltd,228679251,209,FSA CONF/HOTEL CHGS 13/03 to 28/03,DE21 6BF,Admin
Food Standards Agency,Food Standards Agency,24/04/2013,Travel UK ,Internal Audit,Capita Business Travel Ltd,LI525033,120.7,CONSOLIDATED INVOICE 29/3/13-12/04/13,DE21 6BF,Admin
Food Standards Agency,Food Standards Agency,24/04/2013,Subsistence UK,Area 1 Scotland - Cluster 12,Booking Services International Ltd,228793251,93,FSA CONF/HOTEL CHGS 29/03 to 12/04,TA1 2PF,Programme
Food Standards Agency,Food Standards Agency,24/04/2013,Subsistence UK,Area 6 South East England - Cluster 63,Booking Services International Ltd,228793251,136,FSA CONF/HOTEL CHGS 29/03 to 12/04,TA1 2PF,Programme
Food Standards Agency,Food Standards Agency,26/04/2013,Project Programme expenditure,Delivery,N S F Safety & Quality UK Ltd,5029709,"38,709.80",PO 408190 MARCH 13 COACHING VISITS,OX29 8SJ,Programme
Food Standards Agency,Food Standards Agency,26/04/2013,Programme Evidence & Research Expenditure,Delivery,Staffordshire County Council,8001048220,"43,982.40",PO 408431 ANALYSIS OF SAMPLES,ST16 2NF,Programme
Food Standards Agency,Food Standards Agency,26/04/2013,Civil service pension administration,Operational Delivery,London Pensions Fund Authority,ER741071112,"43,630.31",PO 412638 CAPITAL COST YX480673C R DOWIE,EC3N 4LP,Programme
Food Standards Agency,Food Standards Agency,26/04/2013,Programme Evidence & Research Expenditure,Food Production Branch,Campden Bri,20061264,"20,350.00",PO 404325 DELIVERABLE D7 PROJECT 122915,GL55 6LD,Programme
Food Standards Agency,Food Standards Agency,26/04/2013,Programme Evidence & Research Expenditure,Food Production Branch,Campden Bri,20061264,"19,052.00",PO 404325 DELIVERABLE D7 PROJECT 122915,GL55 6LD,Programme
Food Standards Agency,Food Standards Agency,26/04/2013,Programme Evidence & Research Expenditure,Food Production Branch,Campden Bri,20061269,"27,326.00",PO 404325 DELIVERABLE D8 REPORT 6,GL55 6LD,Programme
Food Standards Agency,Food Standards Agency,26/04/2013,Programme Evidence & Research Expenditure,Food Production Branch,Campden Bri,20061269,"9,555.00",PO 404325 DELIVERABLE D8 REPORT 6,GL55 6LD,Programme
Food Standards Agency,Food Standards Agency,26/04/2013,IT hardware/software purchases ,IT Strategy & Development,Capita Secure Information Solutions Ltd,92921875,"148,514.43",PO 411817 DESKTOP REFRESH,SN14 0TW,Admin
Food Standards Agency,Food Standards Agency,30/04/2013,Programme Evidence & Research Expenditure,Delivery,Trading Standards South East Ltd,CD201210,"40,218.74",PO 409513 TSSEL NATIONAL CO-ORDINATED SAMPLING GRANT FINAL 40%,KT22 7AH,Programme
Food Standards Agency,Food Standards Agency,30/04/2013,Project Programme expenditure,Contaminants Policy & Strategy Unit,C E F A S,8002424,"67,657.25",PO 400800 OCT - DEC 2012 PROJECT C2848,NR33 0HT,Programme
Food Standards Agency,Food Standards Agency,30/04/2013,Project Programme expenditure,Contaminants Policy & Strategy Unit,C E F A S,8002520,"200,766.00",PO 408473 OCT - DEC 2012 PROJETC C2704,NR33 0HT,Programme
Food Standards Agency,Food Standards Agency,30/04/2013,Project Programme expenditure,Contaminants Policy & Strategy Unit,C E F A S,8002520,"40,153.20",PO 408473 OCT - DEC 2012 PROJETC C2704,NR33 0HT,Programme
"Date Run: 14-MAY-13 01.09.21 PM --- Company Code : '17' , Payment Start Date : '01-APR-2013' , Payment End Date : '30-APR-2013'",,,,,,,,,,
